'DEPARTMENT_FAMILY,ENTITY,PAYMENT_DATE,EXPENSE_TYPE,EXPENSE_AREA,SUPPLIER,TRANSACTION_NUMBER,AMOUNT,DESCRIPTION
Ministry of Justice,LEGAL AID AGENCY,09/03/2016,512000-Intangible GBV - Additions,VA294-ISD,ATOS IT SERVICES UK LTD,2004531,"222,380.00 ",Workplace Transformation costs
Ministry of Justice,LEGAL AID AGENCY,16/03/2016,221000-Property Rent and Rates,VA396-Property Costs,JONES LANG LASALLE LTD,2004662,"94,040.10 ",Rental Costs
Ministry of Justice,LEGAL AID AGENCY,23/03/2016,221000-Property Rent and Rates,VA396-Property Costs,WORKMAN,2004758,"87,930.00 ",Rental Costs
Ministry of Justice,LEGAL AID AGENCY,30/03/2016,223000-Other Expenditure,VA395-National Courts Team,ROSSENDALES LTD,2004816,"80,002.75 ",CCMT Costs
Ministry of Justice,LEGAL AID AGENCY,23/03/2016,221000-Property Rent and Rates,VA396-Property Costs,CBRE LTD,2004708,"71,846.40 ",Rental Costs
Ministry of Justice,LEGAL AID AGENCY,09/03/2016,265000-IT & Telecommunications,VA294-ISD,REDCENTRIC SOLUTIONS LTD,2004598,"69,736.60 ",IT costs
Ministry of Justice,LEGAL AID AGENCY,23/03/2016,265000-IT & Telecommunications,VA294-ISD,REDCENTRIC SOLUTIONS LTD,2004743,"69,736.60 ",IT Costs
Ministry of Justice,LEGAL AID AGENCY,23/03/2016,222002-Other Property Costs,VA396-Property Costs,WORKMAN,2004758,"60,397.51 ",Rental Costs
Ministry of Justice,LEGAL AID AGENCY,09/03/2016,512000-Intangible GBV - Additions,VA294-ISD,ATOS IT SERVICES UK LTD,2004531,"58,448.93 ",Workplace Transformation costs
Ministry of Justice,LEGAL AID AGENCY,16/03/2016,222002-Other Property Costs,VA396-Property Costs,LONDON & SCOTTISH PROPERTY MANAGEMENT LTD,2004666,"57,600.00 ",Rental Costs
Ministry of Justice,LEGAL AID AGENCY,23/03/2016,212001-Agency staff,VA403-IDP - Infrastructure,TRUEPENNY PEOPLE UK LTD,2004751,"53,104.80 ",IT costs
Ministry of Justice,LEGAL AID AGENCY,23/03/2016,223000-Other Expenditure,VA395-National Courts Team,ROSSENDALES LTD,2004745,"52,403.15 ",CCMT Costs
Ministry of Justice,LEGAL AID AGENCY,16/03/2016,222002-Other Property Costs,VA396-Property Costs,JONES LANG LASALLE LTD,2004663,"51,764.11 ",Rental Costs
Ministry of Justice,LEGAL AID AGENCY,01/03/2016,223000-Other Expenditure,VA094-Head of Legal,LESTER MORRILL SOLICITORS,2004467,"42,259.36 ",Legal Costs
Ministry of Justice,LEGAL AID AGENCY,30/03/2016,224000-Staff travel and other,VA293-Finance Directorate,REDFERN TRAVEL LTD,2004815,"41,572.50 ",Travel Costs
Ministry of Justice,LEGAL AID AGENCY,23/03/2016,265000-IT & Telecommunications,VA091-Core Executive,BT PLC,2004704,"37,478.48 ",Telephony costs
Ministry of Justice,LEGAL AID AGENCY,23/03/2016,223000-Other Expenditure,VA395-National Courts Team,ROSSENDALES LTD,2004745,"37,390.00 ",CCMT Costs
Ministry of Justice,LEGAL AID AGENCY,16/03/2016,222002-Other Property Costs,VA396-Property Costs,LONDON & SCOTTISH PROPERTY MANAGEMENT LTD,2004666,"33,796.40 ",Rental Costs
Ministry of Justice,LEGAL AID AGENCY,23/03/2016,222001-Maintenance,VA293-Finance Directorate,G V A GRIMLEY,2004726,"31,030.69 ",Property Costs
Ministry of Justice,LEGAL AID AGENCY,30/03/2016,265000-IT & Telecommunications,"VA393-Operations, Civil",NORTHGATE PUBLIC SERVICES (UK) LTD,2004804,"29,382.58 ",IT Costs
Ministry of Justice,LEGAL AID AGENCY,02/03/2016,223000-Other Expenditure,VA118-Legal Aid Transformation,MISS SARAH HANNAFORD QC,2004502,"28,121.68 ",Legal Fees
Ministry of Justice,LEGAL AID AGENCY,24/03/2016,222002-Other Property Costs,VA396-Property Costs,KNIGHT FRANK LLP,15203,"26,265.00 ",Property Costs
Ministry of Justice,LEGAL AID AGENCY,24/03/2016,222002-Other Property Costs,VA396-Property Costs,KNIGHT FRANK LLP,15202,"26,175.00 ",Property Costs
Ministry of Justice,LEGAL AID AGENCY,30/03/2016,222002-Other Property Costs,VA396-Property Costs,ORBIT PROPERTY MANAGEMENT BIRMINGHAM LTD,2004809,"24,718.50 ",Rental Costs
Ministry of Justice,LEGAL AID AGENCY,16/03/2016,221000-Property Rent and Rates,VA396-Property Costs,LONDON & SCOTTISH PROPERTY MANAGEMENT LTD,2004666,"21,150.00 ",Rental Costs
Ministry of Justice,LEGAL AID AGENCY,24/03/2016,222002-Other Property Costs,VA396-Property Costs,KNIGHT FRANK LLP,15202,"13,964.39 ",Property Costs
Ministry of Justice,LEGAL AID AGENCY,24/03/2016,222002-Other Property Costs,VA396-Property Costs,KNIGHT FRANK LLP,15203,"13,889.78 ",Property Costs
Ministry of Justice,LEGAL AID AGENCY,16/03/2016,222002-Other Property Costs,VA396-Property Costs,LONDON & SCOTTISH PROPERTY MANAGEMENT LTD,2004666,"12,161.41 ",Rental Costs
Ministry of Justice,LEGAL AID AGENCY,23/03/2016,222002-Other Property Costs,VA396-Property Costs,CBRE LTD,2004708,"9,356.58 ",Rental Costs
Ministry of Justice,LEGAL AID AGENCY,30/03/2016,222002-Other Property Costs,VA396-Property Costs,ORBIT PROPERTY MANAGEMENT BIRMINGHAM LTD,2004809,"8,740.78 ",Rental Costs
Ministry of Justice,LEGAL AID AGENCY,30/03/2016,223000-Other Expenditure,VA395-National Courts Team,ROSSENDALES LTD,2004816,"6,554.94 ",CCMT Costs
MINISTRY OF JUSTICE,LEGAL AID AGENCY,17/03/2016,Lower Crime,LEGAL AID FUND,SAMUEL BLOM-COOPER,933443:143526078,"212,598.00 ",Legal Aid Payment - Lower Crime
MINISTRY OF JUSTICE,LEGAL AID AGENCY,17/03/2016,Lower Crime,LEGAL AID FUND,R ALUN JONES QC,930374:143525934,"182,844.00 ",Legal Aid Payment - Lower Crime
MINISTRY OF JUSTICE,LEGAL AID AGENCY,02/03/2016,Legal Help,LEGAL AID FUND,DUNCAN LEWIS,921965:143328204,"400,000.00 ",Legal Aid Payment - Legal Help
MINISTRY OF JUSTICE,LEGAL AID AGENCY,02/03/2016,Legal Help,LEGAL AID FUND,DUNCAN LEWIS,921964:143328205,"268,400.00 ",Legal Aid Payment - Legal Help
MINISTRY OF JUSTICE,LEGAL AID AGENCY,17/03/2016,Civil Representation,LEGAL AID FUND,HODGE JONES & ALLEN LLP,932444:143525649,"210,194.27 ",Legal Aid Payment - Civil Representation
MINISTRY OF JUSTICE,LEGAL AID AGENCY,02/03/2016,Lower Crime,LEGAL AID FUND,THE JOHNSON PARTNERSHIP,920076:143366529,"190,000.00 ",Legal Aid Payment - Lower Crime
MINISTRY OF JUSTICE,LEGAL AID AGENCY,02/03/2016,Lower Crime,LEGAL AID FUND,CARRINGTONS SOLICITORS,924245:143367069,"177,892.00 ",Legal Aid Payment - Lower Crime
MINISTRY OF JUSTICE,LEGAL AID AGENCY,02/03/2016,Lower Crime,LEGAL AID FUND,TUCKERS SOLICITORS LLP,923500:143366331,"176,400.00 ",Legal Aid Payment - Lower Crime
MINISTRY OF JUSTICE,LEGAL AID AGENCY,02/03/2016,Lower Crime,LEGAL AID FUND,DUNCAN LEWIS,921964:143367021,"127,200.00 ",Legal Aid Payment - Lower Crime
MINISTRY OF JUSTICE,LEGAL AID AGENCY,17/03/2016,Higher Crime,LEGAL AID FUND,BLACKWELLS,933532:143475661,"126,436.38 ",Legal Aid Payment - Higher Crime
MINISTRY OF JUSTICE,LEGAL AID AGENCY,02/03/2016,Legal Help,LEGAL AID FUND,WILSON SOLICITORS LLP,921008:143328203,"121,600.00 ",Legal Aid Payment - Legal Help
MINISTRY OF JUSTICE,LEGAL AID AGENCY,02/03/2016,Lower Crime,LEGAL AID FUND,J D SPICER ZEB,921652:143366167,"119,644.00 ",Legal Aid Payment - Lower Crime
MINISTRY OF JUSTICE,LEGAL AID AGENCY,17/03/2016,Higher Crime,LEGAL AID FUND,FARLEYS SOLICITORS LLP,929548:143518999,"116,008.46 ",Legal Aid Payment - Higher Crime
MINISTRY OF JUSTICE,LEGAL AID AGENCY,02/03/2016,Higher Crime,LEGAL AID FUND,DE MAIDS SOLICITORS & ADVOCATES,922563:143368188,"107,970.13 ",Legal Aid Payment - Higher Crime
MINISTRY OF JUSTICE,LEGAL AID AGENCY,02/03/2016,Higher Crime,LEGAL AID FUND,WEST MIDLANDS SOLICITORS,923845:143368298,"107,970.13 ",Legal Aid Payment - Higher Crime
MINISTRY OF JUSTICE,LEGAL AID AGENCY,17/03/2016,Higher Crime,LEGAL AID FUND,THE JOHNSON PARTNERSHIP,931215:143518982,"107,970.13 ",Legal Aid Payment - Higher Crime
MINISTRY OF JUSTICE,LEGAL AID AGENCY,17/03/2016,Higher Crime,LEGAL AID FUND,CHIVERS SOLICITORS,931735:143518897,"107,970.13 ",Legal Aid Payment - Higher Crime
MINISTRY OF JUSTICE,LEGAL AID AGENCY,17/03/2016,Higher Crime,LEGAL AID FUND,MARTYN PROWEL LTD,932510:143518984,"107,970.13 ",Legal Aid Payment - Higher Crime
MINISTRY OF JUSTICE,LEGAL AID AGENCY,02/03/2016,Higher Crime,LEGAL AID FUND,HAIDER SOLICITORS,921072:143368144,"107,574.07 ",Legal Aid Payment - Higher Crime
MINISTRY OF JUSTICE,LEGAL AID AGENCY,02/03/2016,Higher Crime,LEGAL AID FUND,JOHN H SMITH,923521:143368133,"107,574.07 ",Legal Aid Payment - Higher Crime
MINISTRY OF JUSTICE,LEGAL AID AGENCY,02/03/2016,Higher Crime,LEGAL AID FUND,YASMIN & SHAID SOLICITORS LTD,923883:143368261,"107,574.07 ",Legal Aid Payment - Higher Crime
MINISTRY OF JUSTICE,LEGAL AID AGENCY,17/03/2016,Higher Crime,LEGAL AID FUND,MPG SOLICITORS,930053:143518885,"107,574.07 ",Legal Aid Payment - Higher Crime
MINISTRY OF JUSTICE,LEGAL AID AGENCY,17/03/2016,Higher Crime,LEGAL AID FUND,GOOD & CO SOLICITORS LLP,931124:143475634,"107,574.07 ",Legal Aid Payment - Higher Crime
MINISTRY OF JUSTICE,LEGAL AID AGENCY,02/03/2016,Higher Crime,LEGAL AID FUND,HARRIS SOLICITORS,920498:143368306,"105,857.75 ",Legal Aid Payment - Higher Crime
MINISTRY OF JUSTICE,LEGAL AID AGENCY,02/03/2016,Higher Crime,LEGAL AID FUND,ABV SOLICITORS,923431:143368283,"105,857.75 ",Legal Aid Payment - Higher Crime
MINISTRY OF JUSTICE,LEGAL AID AGENCY,02/03/2016,Higher Crime,LEGAL AID FUND,AMAL SOLICITORS,923861:143368198,"105,857.75 ",Legal Aid Payment - Higher Crime
MINISTRY OF JUSTICE,LEGAL AID AGENCY,17/03/2016,Higher Crime,LEGAL AID FUND,ALI & CO,929408:143518944,"105,857.75 ",Legal Aid Payment - Higher Crime
MINISTRY OF JUSTICE,LEGAL AID AGENCY,24/03/2016,Higher Crime,LEGAL AID FUND,O'KEEFFE SOLICITORS,936722:143560231,"105,857.75 ",Legal Aid Payment - Higher Crime
MINISTRY OF JUSTICE,LEGAL AID AGENCY,02/03/2016,Lower Crime,LEGAL AID FUND,NOBLE SOLICITORS,920027:143367186,"102,119.00 ",Legal Aid Payment - Lower Crime
MINISTRY OF JUSTICE,LEGAL AID AGENCY,02/03/2016,Lower Crime,LEGAL AID FUND,STUART MILLER SOLICITORS LTD,923503:143366329,"101,989.00 ",Legal Aid Payment - Lower Crime
MINISTRY OF JUSTICE,LEGAL AID AGENCY,02/03/2016,Legal Help,LEGAL AID FUND,BURKE NIAZI  LTD,922582:143328206,"100,000.00 ",Legal Aid Payment - Legal Help
MINISTRY OF JUSTICE,LEGAL AID AGENCY,02/03/2016,Lower Crime,LEGAL AID FUND,T V EDWARDS LLP,923465:143366353,"100,000.00 ",Legal Aid Payment - Lower Crime
MINISTRY OF JUSTICE,LEGAL AID AGENCY,02/03/2016,Lower Crime,LEGAL AID FUND,BHATIA BEST LTD,924769:143366538,"100,000.00 ",Legal Aid Payment - Lower Crime
MINISTRY OF JUSTICE,LEGAL AID AGENCY,02/03/2016,Lower Crime,LEGAL AID FUND,HODGE JONES & ALLEN LLP,921649:143366168,"99,599.00 ",Legal Aid Payment - Lower Crime
MINISTRY OF JUSTICE,LEGAL AID AGENCY,02/03/2016,Lower Crime,LEGAL AID FUND,I B B SOLICITORS,923405:143366732,"98,100.00 ",Legal Aid Payment - Lower Crime
MINISTRY OF JUSTICE,LEGAL AID AGENCY,17/03/2016,Higher Crime,LEGAL AID FUND,BHATIA BEST LTD,930712:143475612,"97,616.83 ",Legal Aid Payment - Higher Crime
MINISTRY OF JUSTICE,LEGAL AID AGENCY,17/03/2016,Higher Crime,LEGAL AID FUND,MARK JONES & PARTNERS,932937:143518882,"97,616.83 ",Legal Aid Payment - Higher Crime
MINISTRY OF JUSTICE,LEGAL AID AGENCY,17/03/2016,Higher Crime,LEGAL AID FUND,SOLOMON LAW SOLICITORS LTD,930626:143475638,"97,258.75 ",Legal Aid Payment - Higher Crime
MINISTRY OF JUSTICE,LEGAL AID AGENCY,17/03/2016,Higher Crime,LEGAL AID FUND,JANES SOLICITORS,933602:143526959,"94,047.69 ",Legal Aid Payment - Higher Crime
MINISTRY OF JUSTICE,LEGAL AID AGENCY,02/03/2016,Higher Crime,LEGAL AID FUND,OWEN NASH & CO,921637:143368303,"92,163.55 ",Legal Aid Payment - Higher Crime
MINISTRY OF JUSTICE,LEGAL AID AGENCY,02/03/2016,Lower Crime,LEGAL AID FUND,LAWTONS SOLICITORS LTD,920471:143367351,"92,000.00 ",Legal Aid Payment - Lower Crime
MINISTRY OF JUSTICE,LEGAL AID AGENCY,02/03/2016,Higher Crime,LEGAL AID FUND,PILLAI & JONES,920183:143346143,"89,975.11 ",Legal Aid Payment - Higher Crime
MINISTRY OF JUSTICE,LEGAL AID AGENCY,02/03/2016,Higher Crime,LEGAL AID FUND,GOOD & CO SOLICITORS LLP,920439:143368203,"89,975.11 ",Legal Aid Payment - Higher Crime
MINISTRY OF JUSTICE,LEGAL AID AGENCY,02/03/2016,Higher Crime,LEGAL AID FUND,ASHMANS SOLICITORS,920972:143368252,"89,975.11 ",Legal Aid Payment - Higher Crime
MINISTRY OF JUSTICE,LEGAL AID AGENCY,02/03/2016,Higher Crime,LEGAL AID FUND,SIMPSON HEALD PEARSON,921031:143368320,"89,975.11 ",Legal Aid Payment - Higher Crime
MINISTRY OF JUSTICE,LEGAL AID AGENCY,02/03/2016,Higher Crime,LEGAL AID FUND,WATSON WOODHOUSE SOLICITORS LLP,923548:143368232,"89,975.11 ",Legal Aid Payment - Higher Crime
MINISTRY OF JUSTICE,LEGAL AID AGENCY,02/03/2016,Higher Crime,LEGAL AID FUND,DHANJU MCLEAN ARORA SOLICITORS,924261:143368292,"89,975.11 ",Legal Aid Payment - Higher Crime
MINISTRY OF JUSTICE,LEGAL AID AGENCY,17/03/2016,Higher Crime,LEGAL AID FUND,J D SPICER ZEB,929656:143475483,"89,975.11 ",Legal Aid Payment - Higher Crime
MINISTRY OF JUSTICE,LEGAL AID AGENCY,17/03/2016,Higher Crime,LEGAL AID FUND,LINCOLNS SOLICITORS,931129:143518949,"89,975.11 ",Legal Aid Payment - Higher Crime
MINISTRY OF JUSTICE,LEGAL AID AGENCY,17/03/2016,Higher Crime,LEGAL AID FUND,HICKMAN & ROSE,931295:143475665,"89,975.11 ",Legal Aid Payment - Higher Crime
MINISTRY OF JUSTICE,LEGAL AID AGENCY,17/03/2016,Higher Crime,LEGAL AID FUND,HEDLEY SOLICITORS,931701:143518950,"89,975.11 ",Legal Aid Payment - Higher Crime
MINISTRY OF JUSTICE,LEGAL AID AGENCY,17/03/2016,Higher Crime,LEGAL AID FUND,MARK JONES & PARTNERS,932937:143518878,"89,975.11 ",Legal Aid Payment - Higher Crime
MINISTRY OF JUSTICE,LEGAL AID AGENCY,17/03/2016,Higher Crime,LEGAL AID FUND,RH LAW LLP,933564:143518895,"89,975.11 ",Legal Aid Payment - Higher Crime
MINISTRY OF JUSTICE,LEGAL AID AGENCY,17/03/2016,Higher Crime,LEGAL AID FUND,ARANI SOLICITORS,933580:143518940,"89,975.11 ",Legal Aid Payment - Higher Crime
MINISTRY OF JUSTICE,LEGAL AID AGENCY,02/03/2016,Higher Crime,LEGAL AID FUND,WHITFIELDS,922121:143368141,"86,943.73 ",Legal Aid Payment - Higher Crime
MINISTRY OF JUSTICE,LEGAL AID AGENCY,02/03/2016,Civil Representation,LEGAL AID FUND,RAWAL & CO,920211:143326061,"86,291.30 ",Legal Aid Payment - Civil Representation
MINISTRY OF JUSTICE,LEGAL AID AGENCY,02/03/2016,Legal Help,LEGAL AID FUND,LAWRENCE LUPIN SOLICITORS LTD,921972:143365397,"85,793.00 ",Legal Aid Payment - Legal Help
MINISTRY OF JUSTICE,LEGAL AID AGENCY,02/03/2016,Lower Crime,LEGAL AID FUND,MCGANNS LAW LTD,923425:143367106,"85,223.00 ",Legal Aid Payment - Lower Crime
MINISTRY OF JUSTICE,LEGAL AID AGENCY,24/03/2016,Higher Crime,LEGAL AID FUND,IMRAN KHAN & PARTNERS,936719:143592829,"85,021.75 ",Legal Aid Payment - Higher Crime
MINISTRY OF JUSTICE,LEGAL AID AGENCY,02/03/2016,Lower Crime,LEGAL AID FUND,PURCELL PARKER LTD,921024:143366624,"85,000.00 ",Legal Aid Payment - Lower Crime
MINISTRY OF JUSTICE,LEGAL AID AGENCY,02/03/2016,Lower Crime,LEGAL AID FUND,LESLIE FRANKS SOLICITORS,924251:143366976,"84,846.00 ",Legal Aid Payment - Lower Crime
MINISTRY OF JUSTICE,LEGAL AID AGENCY,17/03/2016,Higher Crime,LEGAL AID FUND,GURNEY HARDEN SOLICITORS,930537:143475619,"83,583.07 ",Legal Aid Payment - Higher Crime
MINISTRY OF JUSTICE,LEGAL AID AGENCY,17/03/2016,Higher Crime,LEGAL AID FUND,SHAFI SOLICITORS LLP,932016:143499541,"83,583.07 ",Legal Aid Payment - Higher Crime
MINISTRY OF JUSTICE,LEGAL AID AGENCY,17/03/2016,Higher Crime,LEGAL AID FUND,ZMS LEGAL LTD TA ZMS SOLICITORS,930042:143518919,"83,489.48 ",Legal Aid Payment - Higher Crime
MINISTRY OF JUSTICE,LEGAL AID AGENCY,17/03/2016,Higher Crime,LEGAL AID FUND,HOWARD & CO,931258:143475459,"83,276.78 ",Legal Aid Payment - Higher Crime
MINISTRY OF JUSTICE,LEGAL AID AGENCY,02/03/2016,Legal Help,LEGAL AID FUND,CARTWRIGHT KING SOLICITORS,922921:143365458,"83,236.00 ",Legal Aid Payment - Legal Help
MINISTRY OF JUSTICE,LEGAL AID AGENCY,24/03/2016,Higher Crime,LEGAL AID FUND,PETHERBRIDGE BASSRA SOLICITORS LTD,934695:143572273,"82,285.21 ",Legal Aid Payment - Higher Crime
MINISTRY OF JUSTICE,LEGAL AID AGENCY,17/03/2016,Higher Crime,LEGAL AID FUND,HARRIS SOLICITORS,931180:143518912,"81,347.36 ",Legal Aid Payment - Higher Crime
MINISTRY OF JUSTICE,LEGAL AID AGENCY,17/03/2016,Higher Crime,LEGAL AID FUND,BAILEY GARCHA SOLICITORS LTD,932522:143518937,"81,347.36 ",Legal Aid Payment - Higher Crime
MINISTRY OF JUSTICE,LEGAL AID AGENCY,24/03/2016,Higher Crime,LEGAL AID FUND,OLLIERS,937773:143594129,"81,272.03 ",Legal Aid Payment - Higher Crime
MINISTRY OF JUSTICE,LEGAL AID AGENCY,02/03/2016,Higher Crime,LEGAL AID FUND,ABV SOLICITORS,923431:143368279,"81,155.77 ",Legal Aid Payment - Higher Crime
MINISTRY OF JUSTICE,LEGAL AID AGENCY,02/03/2016,Higher Crime,LEGAL AID FUND,GLADSTONE SOLICITORS,920975:143368260,"81,030.27 ",Legal Aid Payment - Higher Crime
MINISTRY OF JUSTICE,LEGAL AID AGENCY,02/03/2016,Lower Crime,LEGAL AID FUND,TUCKERS SOLICITORS LLP,923499:143366639,"80,900.00 ",Legal Aid Payment - Lower Crime
MINISTRY OF JUSTICE,LEGAL AID AGENCY,02/03/2016,Lower Crime,LEGAL AID FUND,ABV SOLICITORS,923431:143367098,"80,800.00 ",Legal Aid Payment - Lower Crime
MINISTRY OF JUSTICE,LEGAL AID AGENCY,17/03/2016,Higher Crime,LEGAL AID FUND,HODGE JONES & ALLEN LLP,932444:143518998,"80,456.02 ",Legal Aid Payment - Higher Crime
MINISTRY OF JUSTICE,LEGAL AID AGENCY,02/03/2016,Legal Help,LEGAL AID FUND,QS JACKSON CANTER LTD,924494:143365745,"79,315.00 ",Legal Aid Payment - Legal Help
MINISTRY OF JUSTICE,LEGAL AID AGENCY,17/03/2016,Higher Crime,LEGAL AID FUND,L P EVANS SOLICITORS,931128:143518911,"79,077.55 ",Legal Aid Payment - Higher Crime
MINISTRY OF JUSTICE,LEGAL AID AGENCY,02/03/2016,Legal Help,LEGAL AID FUND,LAWANA & CO,924621:143365598,"79,000.00 ",Legal Aid Payment - Legal Help
MINISTRY OF JUSTICE,LEGAL AID AGENCY,02/03/2016,Higher Crime,LEGAL AID FUND,CARTER MOORE SOLICITORS LTD,923872:143345619,"78,921.64 ",Legal Aid Payment - Higher Crime
MINISTRY OF JUSTICE,LEGAL AID AGENCY,02/03/2016,Lower Crime,LEGAL AID FUND,HINE SOLICITORS,920042:143367294,"76,585.00 ",Legal Aid Payment - Lower Crime
MINISTRY OF JUSTICE,LEGAL AID AGENCY,02/03/2016,Lower Crime,LEGAL AID FUND,PETHERBRIDGE BASSRA SOLICITORS LTD,922930:143366715,"76,132.00 ",Legal Aid Payment - Lower Crime
MINISTRY OF JUSTICE,LEGAL AID AGENCY,02/03/2016,Lower Crime,LEGAL AID FUND,M K LAW SOLICITORS LTD,920916:143367410,"75,652.00 ",Legal Aid Payment - Lower Crime
MINISTRY OF JUSTICE,LEGAL AID AGENCY,17/03/2016,Higher Crime,LEGAL AID FUND,POTTER DERBY SOLICITORS,933576:143461669,"75,510.10 ",Legal Aid Payment - Higher Crime
MINISTRY OF JUSTICE,LEGAL AID AGENCY,02/03/2016,Higher Crime,LEGAL AID FUND,ADVICE WISE SOLICITORS,920437:143368146,"75,338.02 ",Legal Aid Payment - Higher Crime
MINISTRY OF JUSTICE,LEGAL AID AGENCY,17/03/2016,Higher Crime,LEGAL AID FUND,HARRIS SOLICITORS,931180:143518951,"75,085.34 ",Legal Aid Payment - Higher Crime
MINISTRY OF JUSTICE,LEGAL AID AGENCY,02/03/2016,Lower Crime,LEGAL AID FUND,DUNCAN LEWIS,921965:143366699,"74,276.00 ",Legal Aid Payment - Lower Crime
MINISTRY OF JUSTICE,LEGAL AID AGENCY,02/03/2016,Civil Representation,LEGAL AID FUND,MERCY L M AKMAN,924565:143324385,"74,169.00 ",Legal Aid Payment - Civil Representation
MINISTRY OF JUSTICE,LEGAL AID AGENCY,24/03/2016,Higher Crime,LEGAL AID FUND,BARK & CO,935221:143540660,"73,539.81 ",Legal Aid Payment - Higher Crime
MINISTRY OF JUSTICE,LEGAL AID AGENCY,02/03/2016,Legal Help,LEGAL AID FUND,GUILE NICHOLAS-INC DONALD GALBRAITH & CO,924317:143365583,"73,400.00 ",Legal Aid Payment - Legal Help
MINISTRY OF JUSTICE,LEGAL AID AGENCY,02/03/2016,Lower Crime,LEGAL AID FUND,AMPHLETT LISSIMORE BAGSHAWS LLP,923117:143380187,"72,778.00 ",Legal Aid Payment - Lower Crime
MINISTRY OF JUSTICE,LEGAL AID AGENCY,17/03/2016,Higher Crime,LEGAL AID FUND,MI BANKS,931854:143518893,"72,085.97 ",Legal Aid Payment - Higher Crime
MINISTRY OF JUSTICE,LEGAL AID AGENCY,17/03/2016,Higher Crime,LEGAL AID FUND,@CORNWALL LAW LLP,931902:143518976,"71,545.90 ",Legal Aid Payment - Higher Crime
MINISTRY OF JUSTICE,LEGAL AID AGENCY,09/03/2016,Higher Crime,LEGAL AID FUND,MARK R TRAFFORD,925918:143421533,"71,380.09 ",Legal Aid Payment - Higher Crime
MINISTRY OF JUSTICE,LEGAL AID AGENCY,02/03/2016,Higher Crime,LEGAL AID FUND,HIGHFIELD SOLICITORS LTD,924024:143332958,"71,341.00 ",Legal Aid Payment - Higher Crime
MINISTRY OF JUSTICE,LEGAL AID AGENCY,17/03/2016,Civil Representation,LEGAL AID FUND,ATKINSON & FIRTH,933541:143492265,"70,096.24 ",Legal Aid Payment - Civil Representation
MINISTRY OF JUSTICE,LEGAL AID AGENCY,02/03/2016,Higher Crime,LEGAL AID FUND,EDWARDS DUTHIE,920690:143345383,"69,309.55 ",Legal Aid Payment - Higher Crime
MINISTRY OF JUSTICE,LEGAL AID AGENCY,02/03/2016,Legal Help,LEGAL AID FUND,BISON SOLICITORS LTD,923152:143365964,"69,293.00 ",Legal Aid Payment - Legal Help
MINISTRY OF JUSTICE,LEGAL AID AGENCY,17/03/2016,Higher Crime,LEGAL AID FUND,STEEL & SHAMASH,932450:143492952,"69,006.37 ",Legal Aid Payment - Higher Crime
MINISTRY OF JUSTICE,LEGAL AID AGENCY,02/03/2016,Legal Help,LEGAL AID FUND,HOWE & CO,922971:143365417,"68,981.00 ",Legal Aid Payment - Legal Help
MINISTRY OF JUSTICE,LEGAL AID AGENCY,02/03/2016,Higher Crime,LEGAL AID FUND,EMMERSONS SOLICITORS,924749:143368212,"68,785.70 ",Legal Aid Payment - Higher Crime
MINISTRY OF JUSTICE,LEGAL AID AGENCY,17/03/2016,Higher Crime,LEGAL AID FUND,PEARSON CAULFIELD,930109:143518877,"68,654.35 ",Legal Aid Payment - Higher Crime
MINISTRY OF JUSTICE,LEGAL AID AGENCY,02/03/2016,Lower Crime,LEGAL AID FUND,G T STEWART SOLICITORS,923869:143366985,"68,275.00 ",Legal Aid Payment - Lower Crime
MINISTRY OF JUSTICE,LEGAL AID AGENCY,02/03/2016,Higher Crime,LEGAL AID FUND,PURCELL PARKER LTD,921024:143344919,"68,247.05 ",Legal Aid Payment - Higher Crime
MINISTRY OF JUSTICE,LEGAL AID AGENCY,02/03/2016,Higher Crime,LEGAL AID FUND,BYRNE & PARTNERS LLP,922006:143325653,"67,763.04 ",Legal Aid Payment - Higher Crime
MINISTRY OF JUSTICE,LEGAL AID AGENCY,02/03/2016,Higher Crime,LEGAL AID FUND,SILLS & BETTERIDGE LLP,920069:143368249,"67,726.69 ",Legal Aid Payment - Higher Crime
MINISTRY OF JUSTICE,LEGAL AID AGENCY,24/03/2016,Civil Representation,LEGAL AID FUND,ALEXANDER VERDAN QC,935878:141870879,"67,557.00 ",Legal Aid Payment - Civil Representation
MINISTRY OF JUSTICE,LEGAL AID AGENCY,02/03/2016,Lower Crime,LEGAL AID FUND,WELLS BURCOMBE LLP,920944:143367361,"67,507.00 ",Legal Aid Payment - Lower Crime
MINISTRY OF JUSTICE,LEGAL AID AGENCY,02/03/2016,Higher Crime,LEGAL AID FUND,ENNON & CO,924260:143345051,"66,803.85 ",Legal Aid Payment - Higher Crime
MINISTRY OF JUSTICE,LEGAL AID AGENCY,02/03/2016,Higher Crime,LEGAL AID FUND,EDWARDS DUTHIE,920690:143368255,"66,647.62 ",Legal Aid Payment - Higher Crime
MINISTRY OF JUSTICE,LEGAL AID AGENCY,02/03/2016,Lower Crime,LEGAL AID FUND,VHS FLETCHERS,920118:143366555,"66,500.00 ",Legal Aid Payment - Lower Crime
MINISTRY OF JUSTICE,LEGAL AID AGENCY,24/03/2016,Higher Crime,LEGAL AID FUND,JANES SOLICITORS,934769:143603032,"66,458.15 ",Legal Aid Payment - Higher Crime
MINISTRY OF JUSTICE,LEGAL AID AGENCY,09/03/2016,Higher Crime,LEGAL AID FUND,IRVINE THANVI NATAS SOLICITORS,925166:143402333,"66,379.84 ",Legal Aid Payment - Higher Crime
MINISTRY OF JUSTICE,LEGAL AID AGENCY,02/03/2016,Lower Crime,LEGAL AID FUND,REEDS SOLICITORS LTD,921032:143366868,"65,760.00 ",Legal Aid Payment - Lower Crime
MINISTRY OF JUSTICE,LEGAL AID AGENCY,17/03/2016,Higher Crime,LEGAL AID FUND,J D SOLICITORS,929481:143518901,"65,633.90 ",Legal Aid Payment - Higher Crime
MINISTRY OF JUSTICE,LEGAL AID AGENCY,24/03/2016,Civil Representation,LEGAL AID FUND,HANNE & CO,936708:143566242,"65,591.42 ",Legal Aid Payment - Civil Representation
MINISTRY OF JUSTICE,LEGAL AID AGENCY,02/03/2016,Legal Help,LEGAL AID FUND,RMNJ SOLICITORS ***,920531:143365371,"65,441.00 ",Legal Aid Payment - Legal Help
MINISTRY OF JUSTICE,LEGAL AID AGENCY,02/03/2016,Lower Crime,LEGAL AID FUND,S A LAW CHAMBERS SOLICITORS,922507:143366917,"65,000.00 ",Legal Aid Payment - Lower Crime
MINISTRY OF JUSTICE,LEGAL AID AGENCY,02/03/2016,Civil Representation,LEGAL AID FUND,MERCY L M AKMAN,924565:143336337,"-64,985.23 ",Legal Aid Payment - Civil Representation
MINISTRY OF JUSTICE,LEGAL AID AGENCY,17/03/2016,Higher Crime,LEGAL AID FUND,SVS SOLICITORS,930568:143462541,"64,742.88 ",Legal Aid Payment - Higher Crime
MINISTRY OF JUSTICE,LEGAL AID AGENCY,02/03/2016,Lower Crime,LEGAL AID FUND,THE JOHNSON PARTNERSHIP,920074:143367148,"64,000.00 ",Legal Aid Payment - Lower Crime
MINISTRY OF JUSTICE,LEGAL AID AGENCY,09/03/2016,Higher Crime,LEGAL AID FUND,H P GOWER SOLICITORS,926749:143450300,"63,796.17 ",Legal Aid Payment - Higher Crime
MINISTRY OF JUSTICE,LEGAL AID AGENCY,09/03/2016,Civil Representation,LEGAL AID FUND,RUSSELL-COOKE LLP,926439:143300184,"63,618.90 ",Legal Aid Payment - Civil Representation
MINISTRY OF JUSTICE,LEGAL AID AGENCY,02/03/2016,Lower Crime,LEGAL AID FUND,H P GOWER SOLICITORS,920481:143367341,"63,120.00 ",Legal Aid Payment - Lower Crime
MINISTRY OF JUSTICE,LEGAL AID AGENCY,02/03/2016,Lower Crime,LEGAL AID FUND,JSP LAW LTD,920433:143367326,"63,108.00 ",Legal Aid Payment - Lower Crime
MINISTRY OF JUSTICE,LEGAL AID AGENCY,24/03/2016,Higher Crime,LEGAL AID FUND,BINDMANS LLP,937743:143602832,"62,287.93 ",Legal Aid Payment - Higher Crime
MINISTRY OF JUSTICE,LEGAL AID AGENCY,24/03/2016,Higher Crime,LEGAL AID FUND,ARORA LODHI HEATH,934235:143547382,"62,228.71 ",Legal Aid Payment - Higher Crime
MINISTRY OF JUSTICE,LEGAL AID AGENCY,02/03/2016,Lower Crime,LEGAL AID FUND,TAYLOR STREET SOLICITORS LLP,923963:143366411,"61,700.00 ",Legal Aid Payment - Lower Crime
MINISTRY OF JUSTICE,LEGAL AID AGENCY,17/03/2016,Higher Crime,LEGAL AID FUND,BINDMANS LLP,932355:143519013,"61,510.89 ",Legal Aid Payment - Higher Crime
MINISTRY OF JUSTICE,LEGAL AID AGENCY,09/03/2016,Higher Crime,LEGAL AID FUND,JFH LAW,927189:143401243,"61,242.00 ",Legal Aid Payment - Higher Crime
MINISTRY OF JUSTICE,LEGAL AID AGENCY,17/03/2016,Higher Crime,LEGAL AID FUND,DRAYCOTT BROWNE LTD,931796:143462705,"61,232.35 ",Legal Aid Payment - Higher Crime
MINISTRY OF JUSTICE,LEGAL AID AGENCY,09/03/2016,Higher Crime,LEGAL AID FUND,CHURCHERS BOLITHO WAY,926863:143388226,"60,740.03 ",Legal Aid Payment - Higher Crime
MINISTRY OF JUSTICE,LEGAL AID AGENCY,09/03/2016,Higher Crime,LEGAL AID FUND,KELCEY & HALL SOLICITORS,927652:143413439,"60,740.03 ",Legal Aid Payment - Higher Crime
MINISTRY OF JUSTICE,LEGAL AID AGENCY,17/03/2016,Higher Crime,LEGAL AID FUND,LEVALES SOLICITORS LLP,931148:143519918,"60,740.03 ",Legal Aid Payment - Higher Crime
MINISTRY OF JUSTICE,LEGAL AID AGENCY,17/03/2016,Higher Crime,LEGAL AID FUND,DPP LAW LTD,932907:143474174,"60,500.04 ",Legal Aid Payment - Higher Crime
MINISTRY OF JUSTICE,LEGAL AID AGENCY,02/03/2016,Lower Crime,LEGAL AID FUND,MARTIN MURRAY & ASSOCIATES,920201:143366004,"60,388.00 ",Legal Aid Payment - Lower Crime
MINISTRY OF JUSTICE,LEGAL AID AGENCY,24/03/2016,Higher Crime,LEGAL AID FUND,KBS SOLICITORS,935601:143547155,"60,366.72 ",Legal Aid Payment - Higher Crime
MINISTRY OF JUSTICE,LEGAL AID AGENCY,17/03/2016,Higher Crime,LEGAL AID FUND,DARBYS SOLICITORS LLP,931362:143518931,"60,341.93 ",Legal Aid Payment - Higher Crime
MINISTRY OF JUSTICE,LEGAL AID AGENCY,17/03/2016,Higher Crime,LEGAL AID FUND,ALBIN & CO LTD,929435:143518980,"60,061.16 ",Legal Aid Payment - Higher Crime
MINISTRY OF JUSTICE,LEGAL AID AGENCY,02/03/2016,Civil Representation,LEGAL AID FUND,RUTH S M HENKE QC,924605:143335786,"60,004.80 ",Legal Aid Payment - Civil Representation
MINISTRY OF JUSTICE,LEGAL AID AGENCY,02/03/2016,Lower Crime,LEGAL AID FUND,WESSEX SOLICITORS CHAMBERS,919985:143367246,"60,000.00 ",Legal Aid Payment - Lower Crime
MINISTRY OF JUSTICE,LEGAL AID AGENCY,09/03/2016,Civil Representation,LEGAL AID FUND,CHRISTOPHER M D BARNES,925941:143442973,"60,000.00 ",Legal Aid Payment - Civil Representation
MINISTRY OF JUSTICE,LEGAL AID AGENCY,17/03/2016,Higher Crime,LEGAL AID FUND,MARK C WYETH QC,932743:143460750,"60,000.00 ",Legal Aid Payment - Higher Crime
MINISTRY OF JUSTICE,LEGAL AID AGENCY,17/03/2016,Higher Crime,LEGAL AID FUND,GRAHAM R TREMBATH QC,932745:143460749,"60,000.00 ",Legal Aid Payment - Higher Crime
MINISTRY OF JUSTICE,LEGAL AID AGENCY,24/03/2016,Higher Crime,LEGAL AID FUND,JAMES M MULHOLLAND QC,936338:143601817,"60,000.00 ",Legal Aid Payment - Higher Crime
MINISTRY OF JUSTICE,LEGAL AID AGENCY,24/03/2016,Civil Representation,LEGAL AID FUND,QUALITY SOLICITORS CMHT,934274:143524826,"59,761.25 ",Legal Aid Payment - Civil Representation
MINISTRY OF JUSTICE,LEGAL AID AGENCY,02/03/2016,Legal Help,LEGAL AID FUND,GLEDHILL SOLICITORS,921130:143364739,"59,561.00 ",Legal Aid Payment - Legal Help
MINISTRY OF JUSTICE,LEGAL AID AGENCY,02/03/2016,Higher Crime,LEGAL AID FUND,SVS SOLICITORS,924654:143368315,"59,552.49 ",Legal Aid Payment - Higher Crime
MINISTRY OF JUSTICE,LEGAL AID AGENCY,24/03/2016,Civil Representation,LEGAL AID FUND,ALEXANDER VERDAN QC,935878:141871003,"-59,493.00 ",Legal Aid Payment - Civil Representation
MINISTRY OF JUSTICE,LEGAL AID AGENCY,09/03/2016,Higher Crime,LEGAL AID FUND,LLOYDS PR SOLICITORS,926371:143414823,"59,399.59 ",Legal Aid Payment - Higher Crime
MINISTRY OF JUSTICE,LEGAL AID AGENCY,02/03/2016,Legal Help,LEGAL AID FUND,DUNCAN LEWIS,922675:143365949,"59,300.00 ",Legal Aid Payment - Legal Help
MINISTRY OF JUSTICE,LEGAL AID AGENCY,02/03/2016,Legal Help,LEGAL AID FUND,PETER EDWARDS LAW LTD,921950:143365390,"59,200.00 ",Legal Aid Payment - Legal Help
MINISTRY OF JUSTICE,LEGAL AID AGENCY,02/03/2016,Lower Crime,LEGAL AID FUND,SONN MACMILLAN WALKER LTD,920206:143366000,"58,500.00 ",Legal Aid Payment - Lower Crime
MINISTRY OF JUSTICE,LEGAL AID AGENCY,02/03/2016,Lower Crime,LEGAL AID FUND,JOHN ONIONS SOLICITORS,922520:143366210,"58,308.00 ",Legal Aid Payment - Lower Crime
MINISTRY OF JUSTICE,LEGAL AID AGENCY,02/03/2016,Higher Crime,LEGAL AID FUND,ESN SOLICITORS,923375:143368145,"58,181.50 ",Legal Aid Payment - Higher Crime
MINISTRY OF JUSTICE,LEGAL AID AGENCY,02/03/2016,Civil Representation,LEGAL AID FUND,WILSON SOLICITORS LLP,921008:143383235,"57,578.35 ",Legal Aid Payment - Civil Representation
MINISTRY OF JUSTICE,LEGAL AID AGENCY,17/03/2016,Legal Help,LEGAL AID FUND,SIMPSON MILLAR SOLICITORS LLP,931679:143511575,"57,452.76 ",Legal Aid Payment - Legal Help
MINISTRY OF JUSTICE,LEGAL AID AGENCY,09/03/2016,Higher Crime,LEGAL AID FUND,THOMAS BOYD WHYTE,928881:143450037,"57,352.26 ",Legal Aid Payment - Higher Crime
MINISTRY OF JUSTICE,LEGAL AID AGENCY,17/03/2016,Higher Crime,LEGAL AID FUND,TAHIR KHAN,931747:143520760,"57,186.67 ",Legal Aid Payment - Higher Crime
MINISTRY OF JUSTICE,LEGAL AID AGENCY,02/03/2016,Lower Crime,LEGAL AID FUND,STEVENS SOLICITORS,922998:143366663,"57,000.00 ",Legal Aid Payment - Lower Crime
MINISTRY OF JUSTICE,LEGAL AID AGENCY,02/03/2016,Lower Crime,LEGAL AID FUND,J D SOLICITORS,923849:143367063,"56,338.00 ",Legal Aid Payment - Lower Crime
MINISTRY OF JUSTICE,LEGAL AID AGENCY,17/03/2016,Higher Crime,LEGAL AID FUND,SHAIKH AYUB SOLICITORS,931146:143533425,"55,641.37 ",Legal Aid Payment - Higher Crime
MINISTRY OF JUSTICE,LEGAL AID AGENCY,24/03/2016,Higher Crime,LEGAL AID FUND,PETHERBRIDGE BASSRA SOLICITORS LTD,934695:143560170,"55,641.37 ",Legal Aid Payment - Higher Crime
MINISTRY OF JUSTICE,LEGAL AID AGENCY,02/03/2016,Lower Crime,LEGAL AID FUND,BOND JOSEPH,922471:143366681,"55,634.00 ",Legal Aid Payment - Lower Crime
MINISTRY OF JUSTICE,LEGAL AID AGENCY,02/03/2016,Lower Crime,LEGAL AID FUND,USMANI KING LTD,922416:143366912,"55,504.00 ",Legal Aid Payment - Lower Crime
MINISTRY OF JUSTICE,LEGAL AID AGENCY,09/03/2016,Higher Crime,LEGAL AID FUND,MARK J SUMMERS,927475:143427016,"55,490.11 ",Legal Aid Payment - Higher Crime
MINISTRY OF JUSTICE,LEGAL AID AGENCY,24/03/2016,Civil Representation,LEGAL AID FUND,FINN GLEDHILL,936169:143584745,"55,427.51 ",Legal Aid Payment - Civil Representation
MINISTRY OF JUSTICE,LEGAL AID AGENCY,02/03/2016,Lower Crime,LEGAL AID FUND,HENRY'S SOLICITORS LTD,922481:143366802,"55,300.00 ",Legal Aid Payment - Lower Crime
MINISTRY OF JUSTICE,LEGAL AID AGENCY,17/03/2016,Higher Crime,LEGAL AID FUND,POOLE TOWNSEND,929559:143518956,"55,242.36 ",Legal Aid Payment - Higher Crime
MINISTRY OF JUSTICE,LEGAL AID AGENCY,02/03/2016,Lower Crime,LEGAL AID FUND,STERNBERG REED SOLICITORS,923832:143366596,"55,000.00 ",Legal Aid Payment - Lower Crime
MINISTRY OF JUSTICE,LEGAL AID AGENCY,02/03/2016,Lower Crime,LEGAL AID FUND,LANSBURY WORTHINGTON,923464:143366354,"54,900.00 ",Legal Aid Payment - Lower Crime
MINISTRY OF JUSTICE,LEGAL AID AGENCY,17/03/2016,Higher Crime,LEGAL AID FUND,CARTER MOORE SOLICITORS LTD,930024:143474773,"54,497.60 ",Legal Aid Payment - Higher Crime
MINISTRY OF JUSTICE,LEGAL AID AGENCY,24/03/2016,Civil Representation,LEGAL AID FUND,FMW LAW LTD,934272:143529218,"54,434.70 ",Legal Aid Payment - Civil Representation
MINISTRY OF JUSTICE,LEGAL AID AGENCY,02/03/2016,Higher Crime,LEGAL AID FUND,GREENS SOLICITORS LTD,920122:143346000,"54,382.02 ",Legal Aid Payment - Higher Crime
MINISTRY OF JUSTICE,LEGAL AID AGENCY,02/03/2016,Higher Crime,LEGAL AID FUND,ST LAW  SOLICITORS LTD,923384:143332299,"54,275.63 ",Legal Aid Payment - Higher Crime
MINISTRY OF JUSTICE,LEGAL AID AGENCY,17/03/2016,Higher Crime,LEGAL AID FUND,DAVID C L ETHERINGTON QC,933332:143461807,"54,135.31 ",Legal Aid Payment - Higher Crime
MINISTRY OF JUSTICE,LEGAL AID AGENCY,02/03/2016,Lower Crime,LEGAL AID FUND,SANSBURY DOUGLAS,920053:143367258,"54,000.00 ",Legal Aid Payment - Lower Crime
MINISTRY OF JUSTICE,LEGAL AID AGENCY,02/03/2016,Lower Crime,LEGAL AID FUND,STEVENS SOLICITORS,922999:143366278,"53,700.00 ",Legal Aid Payment - Lower Crime
MINISTRY OF JUSTICE,LEGAL AID AGENCY,02/03/2016,Legal Help,LEGAL AID FUND,QUALITY SOLICITORS CMHT,922077:143365358,"53,619.00 ",Legal Aid Payment - Legal Help
MINISTRY OF JUSTICE,LEGAL AID AGENCY,17/03/2016,Higher Crime,LEGAL AID FUND,L P EVANS SOLICITORS,931128:143499724,"53,562.73 ",Legal Aid Payment - Higher Crime
MINISTRY OF JUSTICE,LEGAL AID AGENCY,02/03/2016,Higher Crime,LEGAL AID FUND,JAMES BENSON & CO,922021:143345855,"53,430.18 ",Legal Aid Payment - Higher Crime
MINISTRY OF JUSTICE,LEGAL AID AGENCY,09/03/2016,Higher Crime,LEGAL AID FUND,RAHMAN RAVELLI SOLICTORS LTD,928367:143388003,"53,154.52 ",Legal Aid Payment - Higher Crime
MINISTRY OF JUSTICE,LEGAL AID AGENCY,17/03/2016,Higher Crime,LEGAL AID FUND,KHAN'S LAW FIRM LTD TA KK & CO,931179:143475596,"53,104.76 ",Legal Aid Payment - Higher Crime
MINISTRY OF JUSTICE,LEGAL AID AGENCY,02/03/2016,Legal Help,LEGAL AID FUND,GREATER MANCHESTER IMMIGRATION AID UNIT,920526:143365267,"53,033.00 ",Legal Aid Payment - Legal Help
MINISTRY OF JUSTICE,LEGAL AID AGENCY,02/03/2016,Lower Crime,LEGAL AID FUND,HOWELLS LLP,924386:143366458,"52,900.00 ",Legal Aid Payment - Lower Crime
MINISTRY OF JUSTICE,LEGAL AID AGENCY,09/03/2016,Higher Crime,LEGAL AID FUND,KEMPS,926450:143401273,"52,704.13 ",Legal Aid Payment - Higher Crime
MINISTRY OF JUSTICE,LEGAL AID AGENCY,24/03/2016,Higher Crime,LEGAL AID FUND,CARR & CO,935672:143594395,"52,697.75 ",Legal Aid Payment - Higher Crime
MINISTRY OF JUSTICE,LEGAL AID AGENCY,02/03/2016,Higher Crime,LEGAL AID FUND,LAURENCE LEE & CO,920117:143370026,"52,452.98 ",Legal Aid Payment - Higher Crime
MINISTRY OF JUSTICE,LEGAL AID AGENCY,17/03/2016,Civil Representation,LEGAL AID FUND,CHILD LAW PARTNERSHIP LTD,931763:143480619,"52,434.90 ",Legal Aid Payment - Civil Representation
MINISTRY OF JUSTICE,LEGAL AID AGENCY,02/03/2016,Civil Representation,LEGAL AID FUND,TEMPERLEY TAYLOR LLP,919858:143335787,"52,368.08 ",Legal Aid Payment - Civil Representation
MINISTRY OF JUSTICE,LEGAL AID AGENCY,02/03/2016,Legal Help,LEGAL AID FUND,ABBOTSTONE LAW LLP,923145:143365967,"52,214.00 ",Legal Aid Payment - Legal Help
MINISTRY OF JUSTICE,LEGAL AID AGENCY,02/03/2016,Higher Crime,LEGAL AID FUND,RICHARD HASWELL SOLICITORS LLP,923462:143369604,"52,021.42 ",Legal Aid Payment - Higher Crime
MINISTRY OF JUSTICE,LEGAL AID AGENCY,02/03/2016,Lower Crime,LEGAL AID FUND,QS JACKSON CANTER LTD,924494:143367446,"51,779.00 ",Legal Aid Payment - Lower Crime
MINISTRY OF JUSTICE,LEGAL AID AGENCY,17/03/2016,Civil Representation,LEGAL AID FUND,DAISY HUGHES,931616:143309578,"51,647.62 ",Legal Aid Payment - Civil Representation
MINISTRY OF JUSTICE,LEGAL AID AGENCY,24/03/2016,Civil Representation,LEGAL AID FUND,LONGDEN WALKER & RENNEY,935266:136263949,"-51,391.84 ",Legal Aid Payment - Civil Representation
MINISTRY OF JUSTICE,LEGAL AID AGENCY,02/03/2016,Lower Crime,LEGAL AID FUND,MCMILLAN WILLIAMS SOLICITORS LTD,922086:143366739,"51,100.00 ",Legal Aid Payment - Lower Crime
MINISTRY OF JUSTICE,LEGAL AID AGENCY,02/03/2016,Legal Help,LEGAL AID FUND,SWAIN & CO SOLICITORS LLP,922488:143365511,"50,700.00 ",Legal Aid Payment - Legal Help
MINISTRY OF JUSTICE,LEGAL AID AGENCY,09/03/2016,Higher Crime,LEGAL AID FUND,MORGAN BROWN & CO,926409:143450153,"50,536.40 ",Legal Aid Payment - Higher Crime
MINISTRY OF JUSTICE,LEGAL AID AGENCY,02/03/2016,Higher Crime,LEGAL AID FUND,CROWE HUMBLE WESENCRAFT,922443:143368227,"50,448.16 ",Legal Aid Payment - Higher Crime
MINISTRY OF JUSTICE,LEGAL AID AGENCY,24/03/2016,Higher Crime,LEGAL AID FUND,ROWE SPARKES SOLICITORS LTD,935155:143570975,"50,128.02 ",Legal Aid Payment - Higher Crime
MINISTRY OF JUSTICE,LEGAL AID AGENCY,02/03/2016,Lower Crime,LEGAL AID FUND,WILSON DEVONALD GRIFFITHS JOHN,920599:143366881,"50,000.00 ",Legal Aid Payment - Lower Crime
MINISTRY OF JUSTICE,LEGAL AID AGENCY,02/03/2016,Lower Crime,LEGAL AID FUND,IRVINE THANVI NATAS SOLICITORS,922489:143366950,"50,000.00 ",Legal Aid Payment - Lower Crime
MINISTRY OF JUSTICE,LEGAL AID AGENCY,02/03/2016,Lower Crime,LEGAL AID FUND,BIRDS SOLICITORS LTD,923390:143366859,"50,000.00 ",Legal Aid Payment - Lower Crime
MINISTRY OF JUSTICE,LEGAL AID AGENCY,02/03/2016,Lower Crime,LEGAL AID FUND,HENNESSY & HAMMUDI,924638:143367157,"50,000.00 ",Legal Aid Payment - Lower Crime
MINISTRY OF JUSTICE,LEGAL AID AGENCY,24/03/2016,Civil Representation,LEGAL AID FUND,LONGDEN WALKER & RENNEY,935266:136263943,"49,876.84 ",Legal Aid Payment - Civil Representation
MINISTRY OF JUSTICE,LEGAL AID AGENCY,24/03/2016,Higher Crime,LEGAL AID FUND,DPP LAW LTD,936051:143570885,"49,803.98 ",Legal Aid Payment - Higher Crime
MINISTRY OF JUSTICE,LEGAL AID AGENCY,09/03/2016,Higher Crime,LEGAL AID FUND,STRINGFELLOW & CO,926388:143449357,"49,729.07 ",Legal Aid Payment - Higher Crime
MINISTRY OF JUSTICE,LEGAL AID AGENCY,09/03/2016,Higher Crime,LEGAL AID FUND,STEPHEN FIDLER & CO,928811:143388215,"49,729.07 ",Legal Aid Payment - Higher Crime
MINISTRY OF JUSTICE,LEGAL AID AGENCY,02/03/2016,Legal Help,LEGAL AID FUND,SCOTT-MONCRIEFF & ASSOCIATES LLP,920231:143364705,"49,600.00 ",Legal Aid Payment - Legal Help
MINISTRY OF JUSTICE,LEGAL AID AGENCY,02/03/2016,Legal Help,LEGAL AID FUND,DAVID GRAY LLP,922980:143365354,"49,276.00 ",Legal Aid Payment - Legal Help
MINISTRY OF JUSTICE,LEGAL AID AGENCY,24/03/2016,Civil Representation,LEGAL AID FUND,ANNE-MARIE GLOVER,935938:143566271,"49,248.00 ",Legal Aid Payment - Civil Representation
MINISTRY OF JUSTICE,LEGAL AID AGENCY,02/03/2016,Lower Crime,LEGAL AID FUND,KESAR & CO SOLICITORS,920981:143367378,"49,128.00 ",Legal Aid Payment - Lower Crime
MINISTRY OF JUSTICE,LEGAL AID AGENCY,02/03/2016,Legal Help,LEGAL AID FUND,LEI DAT BAIG SOLICITORS LIMITED,921445:143365717,"49,128.00 ",Legal Aid Payment - Legal Help
MINISTRY OF JUSTICE,LEGAL AID AGENCY,17/03/2016,Higher Crime,LEGAL AID FUND,EBR ATTRIDGE LLP,930007:143475219,"48,999.96 ",Legal Aid Payment - Higher Crime
MINISTRY OF JUSTICE,LEGAL AID AGENCY,02/03/2016,Lower Crime,LEGAL AID FUND,JERMAN SAMUELS & PEARSON LLP,921996:143366961,"48,800.00 ",Legal Aid Payment - Lower Crime
MINISTRY OF JUSTICE,LEGAL AID AGENCY,02/03/2016,Lower Crime,LEGAL AID FUND,SJ LAW SOLICITORS,921081:143366824,"48,590.00 ",Legal Aid Payment - Lower Crime
MINISTRY OF JUSTICE,LEGAL AID AGENCY,17/03/2016,Higher Crime,LEGAL AID FUND,HOGAN BROWN SOLICITORS,929400:143518947,"48,510.00 ",Legal Aid Payment - Higher Crime
MINISTRY OF JUSTICE,LEGAL AID AGENCY,09/03/2016,Higher Crime,LEGAL AID FUND,WOODS SOLICITORS,926007:143401733,"48,409.40 ",Legal Aid Payment - Higher Crime
MINISTRY OF JUSTICE,LEGAL AID AGENCY,02/03/2016,Lower Crime,LEGAL AID FUND,THE JOHNSON PARTNERSHIP,920051:143367260,"48,400.00 ",Legal Aid Payment - Lower Crime
MINISTRY OF JUSTICE,LEGAL AID AGENCY,17/03/2016,Higher Crime,LEGAL AID FUND,K A SOLICITORS,931728:143474866,"48,289.54 ",Legal Aid Payment - Higher Crime
MINISTRY OF JUSTICE,LEGAL AID AGENCY,17/03/2016,Higher Crime,LEGAL AID FUND,FARADAYS SOLICITORS LTD,932422:143519679,"48,239.24 ",Legal Aid Payment - Higher Crime
MINISTRY OF JUSTICE,LEGAL AID AGENCY,02/03/2016,Lower Crime,LEGAL AID FUND,HARRIS CUFFARO & NICHOLS,923468:143366321,"48,200.00 ",Legal Aid Payment - Lower Crime
MINISTRY OF JUSTICE,LEGAL AID AGENCY,02/03/2016,Lower Crime,LEGAL AID FUND,CRIMINAL DEFENCE SOLICITORS,923921:143366846,"48,200.00 ",Legal Aid Payment - Lower Crime
MINISTRY OF JUSTICE,LEGAL AID AGENCY,24/03/2016,Civil Representation,LEGAL AID FUND,LONGDEN WALKER & RENNEY,935266:136026337,"48,093.89 ",Legal Aid Payment - Civil Representation
MINISTRY OF JUSTICE,LEGAL AID AGENCY,24/03/2016,Higher Crime,LEGAL AID FUND,PAUL K WILLIAMS,935367:143585766,"48,000.00 ",Legal Aid Payment - Higher Crime
MINISTRY OF JUSTICE,LEGAL AID AGENCY,02/03/2016,Lower Crime,LEGAL AID FUND,BLACKFORDS LLP,920632:143366040,"47,923.00 ",Legal Aid Payment - Lower Crime
MINISTRY OF JUSTICE,LEGAL AID AGENCY,02/03/2016,Lower Crime,LEGAL AID FUND,WELLS BURCOMBE LLP,920033:143367180,"47,922.00 ",Legal Aid Payment - Lower Crime
MINISTRY OF JUSTICE,LEGAL AID AGENCY,17/03/2016,Higher Crime,LEGAL AID FUND,YOUNGS SOLICITORS,931797:143461331,"47,790.34 ",Legal Aid Payment - Higher Crime
MINISTRY OF JUSTICE,LEGAL AID AGENCY,02/03/2016,Lower Crime,LEGAL AID FUND,FMW LAW LTD,922088:143366179,"47,000.00 ",Legal Aid Payment - Lower Crime
MINISTRY OF JUSTICE,LEGAL AID AGENCY,02/03/2016,Lower Crime,LEGAL AID FUND,CARTWRIGHT KING SOLICITORS,923567:143367507,"47,000.00 ",Legal Aid Payment - Lower Crime
MINISTRY OF JUSTICE,LEGAL AID AGENCY,17/03/2016,Higher Crime,LEGAL AID FUND,PETER H C CALDWELL,930415:143520325,"46,988.64 ",Legal Aid Payment - Higher Crime
MINISTRY OF JUSTICE,LEGAL AID AGENCY,02/03/2016,Lower Crime,LEGAL AID FUND,"O'NEILL, WRIGHT & NASH",920499:143367277,"46,606.00 ",Legal Aid Payment - Lower Crime
MINISTRY OF JUSTICE,LEGAL AID AGENCY,17/03/2016,Higher Crime,LEGAL AID FUND,CARTER MOORE SOLICITORS LTD,930024:143519232,"46,406.32 ",Legal Aid Payment - Higher Crime
MINISTRY OF JUSTICE,LEGAL AID AGENCY,24/03/2016,Higher Crime,LEGAL AID FUND,I B B SOLICITORS,935136:143542213,"46,056.04 ",Legal Aid Payment - Higher Crime
MINISTRY OF JUSTICE,LEGAL AID AGENCY,24/03/2016,Civil Representation,LEGAL AID FUND,STEEL & SHAMASH,937867:143551331,"46,010.09 ",Legal Aid Payment - Civil Representation
MINISTRY OF JUSTICE,LEGAL AID AGENCY,24/03/2016,Civil Representation,LEGAL AID FUND,MICHELMORES,937315:200499,"45,893.70 ",Legal Aid Payment - Civil Representation
MINISTRY OF JUSTICE,LEGAL AID AGENCY,24/03/2016,Civil Representation,LEGAL AID FUND,ELIZABETH ISAACS,937636:143586414,"45,842.82 ",Legal Aid Payment - Civil Representation
MINISTRY OF JUSTICE,LEGAL AID AGENCY,02/03/2016,Lower Crime,LEGAL AID FUND,LAWTONS SOLICITORS LTD,923449:143367044,"45,700.00 ",Legal Aid Payment - Lower Crime
MINISTRY OF JUSTICE,LEGAL AID AGENCY,17/03/2016,Higher Crime,LEGAL AID FUND,LINDA D STRUDWICK,931987:143520334,"45,643.32 ",Legal Aid Payment - Higher Crime
MINISTRY OF JUSTICE,LEGAL AID AGENCY,02/03/2016,Legal Help,LEGAL AID FUND,FADIGA & CO LTD,923071:143364995,"45,191.00 ",Legal Aid Payment - Legal Help
MINISTRY OF JUSTICE,LEGAL AID AGENCY,02/03/2016,Lower Crime,LEGAL AID FUND,VICKERS & CO INC BERRI'S SOLICITORS,923476:143366349,"44,965.00 ",Legal Aid Payment - Lower Crime
MINISTRY OF JUSTICE,LEGAL AID AGENCY,24/03/2016,Civil Representation,LEGAL AID FUND,MICHELMORES,937315:201715B,"44,961.01 ",Legal Aid Payment - Civil Representation
MINISTRY OF JUSTICE,LEGAL AID AGENCY,17/03/2016,Higher Crime,LEGAL AID FUND,DPP LAW LTD,930582:143518924,"44,817.52 ",Legal Aid Payment - Higher Crime
MINISTRY OF JUSTICE,LEGAL AID AGENCY,02/03/2016,Lower Crime,LEGAL AID FUND,THOMAS BOYD WHYTE,920641:143366037,"44,791.00 ",Legal Aid Payment - Lower Crime
MINISTRY OF JUSTICE,LEGAL AID AGENCY,17/03/2016,Higher Crime,LEGAL AID FUND,JUSTIN C D ROUSE,932255:143474678,"44,561.33 ",Legal Aid Payment - Higher Crime
MINISTRY OF JUSTICE,LEGAL AID AGENCY,09/03/2016,Civil Representation,LEGAL AID FUND,VALERIE STERLING,928613:143392291,"44,472.00 ",Legal Aid Payment - Civil Representation
MINISTRY OF JUSTICE,LEGAL AID AGENCY,09/03/2016,Higher Crime,LEGAL AID FUND,MARK D TOMASSI,927173:143401459,"44,448.12 ",Legal Aid Payment - Higher Crime
MINISTRY OF JUSTICE,LEGAL AID AGENCY,02/03/2016,Lower Crime,LEGAL AID FUND,J D SOLICITORS,920513:143340614,"44,293.00 ",Legal Aid Payment - Lower Crime
MINISTRY OF JUSTICE,LEGAL AID AGENCY,24/03/2016,Civil Representation,LEGAL AID FUND,FORT & CO SOLICITORS,937804:143524922,"44,153.51 ",Legal Aid Payment - Civil Representation
MINISTRY OF JUSTICE,LEGAL AID AGENCY,17/03/2016,Higher Crime,LEGAL AID FUND,ABR SOLICITORS,931718:143461366,"44,108.57 ",Legal Aid Payment - Higher Crime
MINISTRY OF JUSTICE,LEGAL AID AGENCY,02/03/2016,Lower Crime,LEGAL AID FUND,BOBBETTS MACKAN,921184:143366078,"44,000.00 ",Legal Aid Payment - Lower Crime
MINISTRY OF JUSTICE,LEGAL AID AGENCY,02/03/2016,Higher Crime,LEGAL AID FUND,ABV SOLICITORS,923431:143370052,"43,989.46 ",Legal Aid Payment - Higher Crime
MINISTRY OF JUSTICE,LEGAL AID AGENCY,02/03/2016,Lower Crime,LEGAL AID FUND,G T STEWART SOLICITORS,920461:143367305,"43,802.00 ",Legal Aid Payment - Lower Crime
MINISTRY OF JUSTICE,LEGAL AID AGENCY,02/03/2016,Lower Crime,LEGAL AID FUND,VICKERS CHISMAN & WISHLADE,924350:143366433,"43,800.00 ",Legal Aid Payment - Lower Crime
MINISTRY OF JUSTICE,LEGAL AID AGENCY,17/03/2016,Higher Crime,LEGAL AID FUND,TAHIR KHAN,931747:143520879,"43,629.53 ",Legal Aid Payment - Higher Crime
MINISTRY OF JUSTICE,LEGAL AID AGENCY,02/03/2016,Lower Crime,LEGAL AID FUND,ALLEN HOOLE SOLICITORS,924716:143366489,"43,600.00 ",Legal Aid Payment - Lower Crime
MINISTRY OF JUSTICE,LEGAL AID AGENCY,24/03/2016,Civil Representation,LEGAL AID FUND,CHRISTOPHER R POOLE,936416:143480815,"43,588.80 ",Legal Aid Payment - Civil Representation
MINISTRY OF JUSTICE,LEGAL AID AGENCY,02/03/2016,Civil Representation,LEGAL AID FUND,COWANS SOLICITORS LLP,921504:143339182,"43,306.40 ",Legal Aid Payment - Civil Representation
MINISTRY OF JUSTICE,LEGAL AID AGENCY,09/03/2016,Civil Representation,LEGAL AID FUND,ELIZABETH ISAACS,927487:143455298,"43,286.40 ",Legal Aid Payment - Civil Representation
MINISTRY OF JUSTICE,LEGAL AID AGENCY,17/03/2016,Civil Representation,LEGAL AID FUND,ELIZABETH MCGRATH,932675:143478632,"43,286.40 ",Legal Aid Payment - Civil Representation
MINISTRY OF JUSTICE,LEGAL AID AGENCY,02/03/2016,Higher Crime,LEGAL AID FUND,FARADAYS SOLICITORS LTD,921511:143332371,"43,206.72 ",Legal Aid Payment - Higher Crime
MINISTRY OF JUSTICE,LEGAL AID AGENCY,09/03/2016,Civil Representation,LEGAL AID FUND,DARREN F HOWE QC,927441:3000000734540023,"43,173.96 ",Legal Aid Payment - Civil Representation
MINISTRY OF JUSTICE,LEGAL AID AGENCY,02/03/2016,Lower Crime,LEGAL AID FUND,BRADY EASTWOOD PIERCE & STEWART,920688:143366014,"43,127.00 ",Legal Aid Payment - Lower Crime
MINISTRY OF JUSTICE,LEGAL AID AGENCY,02/03/2016,Higher Crime,LEGAL AID FUND,MARY MONSON SOLICITORS,920487:143368273,"43,122.48 ",Legal Aid Payment - Higher Crime
MINISTRY OF JUSTICE,LEGAL AID AGENCY,24/03/2016,Higher Crime,LEGAL AID FUND,DJMS SOLICITORS LTD,935171:143560921,"43,066.78 ",Legal Aid Payment - Higher Crime
MINISTRY OF JUSTICE,LEGAL AID AGENCY,02/03/2016,Lower Crime,LEGAL AID FUND,HOWARD & BYRNE SOLICITORS,923386:143366865,"43,000.00 ",Legal Aid Payment - Lower Crime
MINISTRY OF JUSTICE,LEGAL AID AGENCY,24/03/2016,Higher Crime,LEGAL AID FUND,EBR ATTRIDGE LLP,935561:143593045,"42,875.24 ",Legal Aid Payment - Higher Crime
MINISTRY OF JUSTICE,LEGAL AID AGENCY,02/03/2016,Lower Crime,LEGAL AID FUND,LLM SOLICITORS (LONDON) LTD,920468:143367353,"42,768.00 ",Legal Aid Payment - Lower Crime
MINISTRY OF JUSTICE,LEGAL AID AGENCY,09/03/2016,Higher Crime,LEGAL AID FUND,LAWRENCE & CO,927224:143414042,"42,755.80 ",Legal Aid Payment - Higher Crime
MINISTRY OF JUSTICE,LEGAL AID AGENCY,02/03/2016,Lower Crime,LEGAL AID FUND,DJMS SOLICITORS LTD,920045:143367239,"42,680.00 ",Legal Aid Payment - Lower Crime
MINISTRY OF JUSTICE,LEGAL AID AGENCY,17/03/2016,Higher Crime,LEGAL AID FUND,RASHID & CO,932991:143475103,"42,669.64 ",Legal Aid Payment - Higher Crime
MINISTRY OF JUSTICE,LEGAL AID AGENCY,02/03/2016,Lower Crime,LEGAL AID FUND,POWELL SPENCER AND PARTNERS,921653:143366166,"42,600.00 ",Legal Aid Payment - Lower Crime
MINISTRY OF JUSTICE,LEGAL AID AGENCY,17/03/2016,Civil Representation,LEGAL AID FUND,PHILIP EVANS,931969:143477929,"42,585.84 ",Legal Aid Payment - Civil Representation
MINISTRY OF JUSTICE,LEGAL AID AGENCY,09/03/2016,Higher Crime,LEGAL AID FUND,BENJAMIN J MYERS QC,928173:143400839,"42,399.28 ",Legal Aid Payment - Higher Crime
MINISTRY OF JUSTICE,LEGAL AID AGENCY,02/03/2016,Lower Crime,LEGAL AID FUND,LEVY & CO SOLICITORS LLP,924712:143367174,"42,100.00 ",Legal Aid Payment - Lower Crime
MINISTRY OF JUSTICE,LEGAL AID AGENCY,02/03/2016,Legal Help,LEGAL AID FUND,SWITALSKI'S SOLICITORS LTD,924422:143365099,"42,058.00 ",Legal Aid Payment - Legal Help
MINISTRY OF JUSTICE,LEGAL AID AGENCY,09/03/2016,Higher Crime,LEGAL AID FUND,SHAIKH AYUB SOLICITORS,926777:143400893,"42,049.90 ",Legal Aid Payment - Higher Crime
MINISTRY OF JUSTICE,LEGAL AID AGENCY,02/03/2016,Lower Crime,LEGAL AID FUND,WAINWRIGHT & CUMMINS LLP,923407:143366729,"42,000.00 ",Legal Aid Payment - Lower Crime
MINISTRY OF JUSTICE,LEGAL AID AGENCY,02/03/2016,Lower Crime,LEGAL AID FUND,KAIM TODNER SOLICITORS LIMITED,920679:143366012,"41,854.00 ",Legal Aid Payment - Lower Crime
MINISTRY OF JUSTICE,LEGAL AID AGENCY,17/03/2016,Legal Help,LEGAL AID FUND,SHELTER.,930606:143511513,"41,792.27 ",Legal Aid Payment - Legal Help
MINISTRY OF JUSTICE,LEGAL AID AGENCY,02/03/2016,Lower Crime,LEGAL AID FUND,THE JOHNSON PARTNERSHIP,922672:143367484,"41,600.00 ",Legal Aid Payment - Lower Crime
MINISTRY OF JUSTICE,LEGAL AID AGENCY,02/03/2016,Lower Crime,LEGAL AID FUND,BELMORES SOLICITORS LTD,923835:143366592,"41,513.00 ",Legal Aid Payment - Lower Crime
MINISTRY OF JUSTICE,LEGAL AID AGENCY,02/03/2016,Higher Crime,LEGAL AID FUND,POTTER DERBY SOLICITORS,922583:143368318,"41,370.02 ",Legal Aid Payment - Higher Crime
MINISTRY OF JUSTICE,LEGAL AID AGENCY,02/03/2016,Lower Crime,LEGAL AID FUND,GALBRAITH BRANLEY SOLICITORS,921011:143366736,"41,356.00 ",Legal Aid Payment - Lower Crime
MINISTRY OF JUSTICE,LEGAL AID AGENCY,17/03/2016,Higher Crime,LEGAL AID FUND,RODERICK I JAMES,932294:143520237,"41,349.84 ",Legal Aid Payment - Higher Crime
MINISTRY OF JUSTICE,LEGAL AID AGENCY,17/03/2016,Higher Crime,LEGAL AID FUND,COLIN J WELLS,933455:143487116,"41,179.80 ",Legal Aid Payment - Higher Crime
MINISTRY OF JUSTICE,LEGAL AID AGENCY,17/03/2016,Higher Crime,LEGAL AID FUND,T S LAW LTD,932376:143486303,"41,162.81 ",Legal Aid Payment - Higher Crime
MINISTRY OF JUSTICE,LEGAL AID AGENCY,24/03/2016,Higher Crime,LEGAL AID FUND,ABBEY SOLICITORS,935144:143594224,"41,127.98 ",Legal Aid Payment - Higher Crime
MINISTRY OF JUSTICE,LEGAL AID AGENCY,09/03/2016,Higher Crime,LEGAL AID FUND,QUALITY SOLICITORS CMHT,925691:143450222,"41,054.20 ",Legal Aid Payment - Higher Crime
MINISTRY OF JUSTICE,LEGAL AID AGENCY,24/03/2016,Higher Crime,LEGAL AID FUND,WILLIAM HARBAGE QC,936425:143560743,"41,036.93 ",Legal Aid Payment - Higher Crime
MINISTRY OF JUSTICE,LEGAL AID AGENCY,02/03/2016,Lower Crime,LEGAL AID FUND,CARTWRIGHT KING SOLICITORS,923565:143367509,"40,900.00 ",Legal Aid Payment - Lower Crime
MINISTRY OF JUSTICE,LEGAL AID AGENCY,02/03/2016,Lower Crime,LEGAL AID FUND,GRECH GOODEN SOLICITORS LTD,924673:143367178,"40,596.00 ",Legal Aid Payment - Lower Crime
MINISTRY OF JUSTICE,LEGAL AID AGENCY,02/03/2016,Civil Representation,LEGAL AID FUND,WILSON SOLICITORS LLP,921008:143383240,"-40,383.80 ",Legal Aid Payment - Civil Representation
MINISTRY OF JUSTICE,LEGAL AID AGENCY,02/03/2016,Lower Crime,LEGAL AID FUND,REEDS SOLICITORS LTD,924467:143367442,"40,304.00 ",Legal Aid Payment - Lower Crime
MINISTRY OF JUSTICE,LEGAL AID AGENCY,24/03/2016,Higher Crime,LEGAL AID FUND,JEREMY S DEIN QC,937672:143547172,"40,287.97 ",Legal Aid Payment - Higher Crime
MINISTRY OF JUSTICE,LEGAL AID AGENCY,02/03/2016,Higher Crime,LEGAL AID FUND,GORDON COLE QC,920403:143332352,"40,049.68 ",Legal Aid Payment - Higher Crime
MINISTRY OF JUSTICE,LEGAL AID AGENCY,02/03/2016,Lower Crime,LEGAL AID FUND,ALBIN & CO LTD,923458:143367147,"40,000.00 ",Legal Aid Payment - Lower Crime
MINISTRY OF JUSTICE,LEGAL AID AGENCY,02/03/2016,Legal Help,LEGAL AID FUND,HOWELLS LLP,924386:143365103,"40,000.00 ",Legal Aid Payment - Legal Help
MINISTRY OF JUSTICE,LEGAL AID AGENCY,09/03/2016,Civil Representation,LEGAL AID FUND,JANE E CROWLEY QC,925900:143420819,"39,928.54 ",Legal Aid Payment - Civil Representation
MINISTRY OF JUSTICE,LEGAL AID AGENCY,09/03/2016,Civil Representation,LEGAL AID FUND,H JONATHAN FURNESS QC,926314:143420140,"39,916.80 ",Legal Aid Payment - Civil Representation
MINISTRY OF JUSTICE,LEGAL AID AGENCY,02/03/2016,Civil Representation,LEGAL AID FUND,WOLLEN MICHELMORE,921192:143321887,"39,906.91 ",Legal Aid Payment - Civil Representation
MINISTRY OF JUSTICE,LEGAL AID AGENCY,17/03/2016,Higher Crime,LEGAL AID FUND,ANDREW D SMITH,932623:143461096,"39,828.26 ",Legal Aid Payment - Higher Crime
MINISTRY OF JUSTICE,LEGAL AID AGENCY,02/03/2016,Lower Crime,LEGAL AID FUND,GEOFF WHITE & CO,920013:143367240,"39,823.00 ",Legal Aid Payment - Lower Crime
MINISTRY OF JUSTICE,LEGAL AID AGENCY,02/03/2016,Civil Representation,LEGAL AID FUND,GC SOLICITORS,923402:143324334,"39,812.70 ",Legal Aid Payment - Civil Representation
MINISTRY OF JUSTICE,LEGAL AID AGENCY,02/03/2016,Civil Representation,LEGAL AID FUND,AVERY NAYLOR LTD,921039:143380979,"39,754.58 ",Legal Aid Payment - Civil Representation
MINISTRY OF JUSTICE,LEGAL AID AGENCY,02/03/2016,Lower Crime,LEGAL AID FUND,TILLY BAILEY & IRVINE LLP,923982:143366365,"39,700.00 ",Legal Aid Payment - Lower Crime
MINISTRY OF JUSTICE,LEGAL AID AGENCY,02/03/2016,Lower Crime,LEGAL AID FUND,TEESSIDE LAW LTD,923109:143367497,"39,670.00 ",Legal Aid Payment - Lower Crime
MINISTRY OF JUSTICE,LEGAL AID AGENCY,02/03/2016,Lower Crime,LEGAL AID FUND,RILEY HAYES & CO,921026:143366623,"39,500.00 ",Legal Aid Payment - Lower Crime
MINISTRY OF JUSTICE,LEGAL AID AGENCY,17/03/2016,Civil Representation,LEGAL AID FUND,PLATT & FISHWICK SOLICITORS,929538:143468402,"39,432.75 ",Legal Aid Payment - Civil Representation
MINISTRY OF JUSTICE,LEGAL AID AGENCY,02/03/2016,Civil Representation,LEGAL AID FUND,JEREMY J S PENDLEBURY,922239:143264040,"39,406.50 ",Legal Aid Payment - Civil Representation
MINISTRY OF JUSTICE,LEGAL AID AGENCY,17/03/2016,Civil Representation,LEGAL AID FUND,SALLY F BRADLEY QC-(DEC'D),933374:143492559,"39,301.20 ",Legal Aid Payment - Civil Representation
MINISTRY OF JUSTICE,LEGAL AID AGENCY,02/03/2016,Lower Crime,LEGAL AID FUND,OLIVER D'SA SOLICITORS,923023:143366326,"39,277.00 ",Legal Aid Payment - Lower Crime
MINISTRY OF JUSTICE,LEGAL AID AGENCY,02/03/2016,Higher Crime,LEGAL AID FUND,PS LAW LLP,920307:143370651,"39,263.80 ",Legal Aid Payment - Higher Crime
MINISTRY OF JUSTICE,LEGAL AID AGENCY,09/03/2016,Higher Crime,LEGAL AID FUND,SAMUEL & CO,925610:143413087,"39,263.80 ",Legal Aid Payment - Higher Crime
MINISTRY OF JUSTICE,LEGAL AID AGENCY,17/03/2016,Higher Crime,LEGAL AID FUND,PATTICHI HILL & CROQUES LTD,932975:143475522,"39,263.80 ",Legal Aid Payment - Higher Crime
MINISTRY OF JUSTICE,LEGAL AID AGENCY,09/03/2016,Higher Crime,LEGAL AID FUND,NAEEM MIAN,927549:143427439,"39,192.97 ",Legal Aid Payment - Higher Crime
MINISTRY OF JUSTICE,LEGAL AID AGENCY,24/03/2016,Higher Crime,LEGAL AID FUND,MARTIN L A HICKS QC,936495:143593394,"39,113.17 ",Legal Aid Payment - Higher Crime
MINISTRY OF JUSTICE,LEGAL AID AGENCY,02/03/2016,Lower Crime,LEGAL AID FUND,K LEGAL SOLICITORS,920989:143367369,"39,102.00 ",Legal Aid Payment - Lower Crime
MINISTRY OF JUSTICE,LEGAL AID AGENCY,24/03/2016,Civil Representation,LEGAL AID FUND,AVERY NAYLOR LTD,937708:143598314,"-39,099.90 ",Legal Aid Payment - Civil Representation
MINISTRY OF JUSTICE,LEGAL AID AGENCY,02/03/2016,Civil Representation,LEGAL AID FUND,STONE KING LLP,921104:143267672,"39,095.72 ",Legal Aid Payment - Civil Representation
MINISTRY OF JUSTICE,LEGAL AID AGENCY,24/03/2016,Civil Representation,LEGAL AID FUND,AVERY NAYLOR LTD,937708:143598313,"39,060.95 ",Legal Aid Payment - Civil Representation
MINISTRY OF JUSTICE,LEGAL AID AGENCY,02/03/2016,Legal Help,LEGAL AID FUND,CJCH SOLICITORS,923574:143365975,"38,932.00 ",Legal Aid Payment - Legal Help
MINISTRY OF JUSTICE,LEGAL AID AGENCY,02/03/2016,Higher Crime,LEGAL AID FUND,KHAN'S LAW FIRM LTD TA KK & CO,920497:143369536,"38,919.72 ",Legal Aid Payment - Higher Crime
MINISTRY OF JUSTICE,LEGAL AID AGENCY,02/03/2016,Lower Crime,LEGAL AID FUND,SAKHI LEGAL SERVICES LTD,923424:143367107,"38,861.00 ",Legal Aid Payment - Lower Crime
MINISTRY OF JUSTICE,LEGAL AID AGENCY,02/03/2016,Lower Crime,LEGAL AID FUND,KIRWANS,921497:143366762,"38,842.00 ",Legal Aid Payment - Lower Crime
MINISTRY OF JUSTICE,LEGAL AID AGENCY,02/03/2016,Lower Crime,LEGAL AID FUND,HINE SOLICITORS,920939:143367291,"38,731.00 ",Legal Aid Payment - Lower Crime
MINISTRY OF JUSTICE,LEGAL AID AGENCY,09/03/2016,Civil Representation,LEGAL AID FUND,ANTHONY COLLINS LLP,925698:143392285,"38,607.22 ",Legal Aid Payment - Civil Representation
MINISTRY OF JUSTICE,LEGAL AID AGENCY,09/03/2016,Civil Representation,LEGAL AID FUND,GILLIAN IRVING QC,928192:3000000646170025,"38,596.80 ",Legal Aid Payment - Civil Representation
MINISTRY OF JUSTICE,LEGAL AID AGENCY,02/03/2016,Lower Crime,LEGAL AID FUND,CRIMINAL DEFENCE MILTON KEYNES LTD,920014:143367199,"38,500.00 ",Legal Aid Payment - Lower Crime
MINISTRY OF JUSTICE,LEGAL AID AGENCY,02/03/2016,Lower Crime,LEGAL AID FUND,EBR ATTRIDGE LLP,923897:143366173,"38,400.00 ",Legal Aid Payment - Lower Crime
MINISTRY OF JUSTICE,LEGAL AID AGENCY,17/03/2016,Civil Representation,LEGAL AID FUND,HANNAH METTAM,932283:143469555,"38,318.40 ",Legal Aid Payment - Civil Representation
MINISTRY OF JUSTICE,LEGAL AID AGENCY,02/03/2016,Lower Crime,LEGAL AID FUND,SWAIN & CO SOLICITORS LLP,922487:143366076,"38,300.00 ",Legal Aid Payment - Lower Crime
MINISTRY OF JUSTICE,LEGAL AID AGENCY,02/03/2016,Legal Help,LEGAL AID FUND,M H LEGAL,923415:143365534,"38,100.00 ",Legal Aid Payment - Legal Help
MINISTRY OF JUSTICE,LEGAL AID AGENCY,17/03/2016,Legal Help,LEGAL AID FUND,T. A. LAW,931166:143511678,"38,012.60 ",Legal Aid Payment - Legal Help
MINISTRY OF JUSTICE,LEGAL AID AGENCY,02/03/2016,Lower Crime,LEGAL AID FUND,OWEN NASH & CO,921637:143366203,"38,000.00 ",Legal Aid Payment - Lower Crime
MINISTRY OF JUSTICE,LEGAL AID AGENCY,24/03/2016,Higher Crime,LEGAL AID FUND,JAMES T N SCOBIE QC,935811:143547301,"37,938.37 ",Legal Aid Payment - Higher Crime
MINISTRY OF JUSTICE,LEGAL AID AGENCY,24/03/2016,Higher Crime,LEGAL AID FUND,SALLIE A BENNETT JENKINS QC,936431:143571459,"37,938.37 ",Legal Aid Payment - Higher Crime
MINISTRY OF JUSTICE,LEGAL AID AGENCY,02/03/2016,Civil Representation,LEGAL AID FUND,ALEXA R STOREY-REA,922716:143321963,"37,886.40 ",Legal Aid Payment - Civil Representation
MINISTRY OF JUSTICE,LEGAL AID AGENCY,02/03/2016,Legal Help,LEGAL AID FUND,ELLIOTT BRIDGMAN LTD,921092:143365314,"37,854.00 ",Legal Aid Payment - Legal Help
MINISTRY OF JUSTICE,LEGAL AID AGENCY,02/03/2016,Civil Representation,LEGAL AID FUND,TINA G COOK QC,919909:143321889,"37,718.28 ",Legal Aid Payment - Civil Representation
MINISTRY OF JUSTICE,LEGAL AID AGENCY,17/03/2016,Higher Crime,LEGAL AID FUND,HUSSAIN SOLICITORS LTD,933462:143499959,"37,651.63 ",Legal Aid Payment - Higher Crime
MINISTRY OF JUSTICE,LEGAL AID AGENCY,24/03/2016,Civil Representation,LEGAL AID FUND,DAWN TIGHE,935546:143539266,"37,600.80 ",Legal Aid Payment - Civil Representation
MINISTRY OF JUSTICE,LEGAL AID AGENCY,17/03/2016,Higher Crime,LEGAL AID FUND,FRANCIS G H D FITZGIBBON QC,930932:143533985,"37,578.95 ",Legal Aid Payment - Higher Crime
MINISTRY OF JUSTICE,LEGAL AID AGENCY,02/03/2016,Lower Crime,LEGAL AID FUND,ROWE SPARKES SOLICITORS LTD,923884:143366852,"37,500.00 ",Legal Aid Payment - Lower Crime
MINISTRY OF JUSTICE,LEGAL AID AGENCY,02/03/2016,Higher Crime,LEGAL AID FUND,FARADAYS SOLICITORS LTD,921511:143332732,"37,489.34 ",Legal Aid Payment - Higher Crime
MINISTRY OF JUSTICE,LEGAL AID AGENCY,17/03/2016,Civil Representation,LEGAL AID FUND,THOMPSON & CO,929557:143523750,"37,433.76 ",Legal Aid Payment - Civil Representation
MINISTRY OF JUSTICE,LEGAL AID AGENCY,02/03/2016,Lower Crime,LEGAL AID FUND,CARTWRIGHT CLARK LTD,924293:143367128,"37,397.00 ",Legal Aid Payment - Lower Crime
MINISTRY OF JUSTICE,LEGAL AID AGENCY,02/03/2016,Civil Representation,LEGAL AID FUND,COFFIN MEW,920696:143322746,"37,356.55 ",Legal Aid Payment - Civil Representation
MINISTRY OF JUSTICE,LEGAL AID AGENCY,09/03/2016,Civil Representation,LEGAL AID FUND,LYONS DAVIDSON LTD,925319:143417423,"-37,313.90 ",Legal Aid Payment - Civil Representation
MINISTRY OF JUSTICE,LEGAL AID AGENCY,02/03/2016,Lower Crime,LEGAL AID FUND,GUNEY CLARK & RYAN LTD CO,923885:143366851,"37,289.00 ",Legal Aid Payment - Lower Crime
MINISTRY OF JUSTICE,LEGAL AID AGENCY,17/03/2016,Higher Crime,LEGAL AID FUND,ICAH D E PEART QC,932571:143462192,"37,242.91 ",Legal Aid Payment - Higher Crime
MINISTRY OF JUSTICE,LEGAL AID AGENCY,09/03/2016,Civil Representation,LEGAL AID FUND,LYONS DAVIDSON LTD,925319:143417421,"37,182.80 ",Legal Aid Payment - Civil Representation
MINISTRY OF JUSTICE,LEGAL AID AGENCY,02/03/2016,Lower Crime,LEGAL AID FUND,HINE SOLICITORS,920041:143367295,"37,125.00 ",Legal Aid Payment - Lower Crime
MINISTRY OF JUSTICE,LEGAL AID AGENCY,17/03/2016,Higher Crime,LEGAL AID FUND,ELLIOTT STERN SOLICITORS,932976:143462693,"37,030.27 ",Legal Aid Payment - Higher Crime
MINISTRY OF JUSTICE,LEGAL AID AGENCY,02/03/2016,Higher Crime,LEGAL AID FUND,HOLLINGSWORTH EDWARDS SOLICITORS-ADV,924091:143345550,"37,026.00 ",Legal Aid Payment - Higher Crime
MINISTRY OF JUSTICE,LEGAL AID AGENCY,02/03/2016,Lower Crime,LEGAL AID FUND,NUMBER ONE LAW LLP,919997:143367244,"36,980.00 ",Legal Aid Payment - Lower Crime
MINISTRY OF JUSTICE,LEGAL AID AGENCY,09/03/2016,Higher Crime,LEGAL AID FUND,PHILIPPA M MCATASNEY QC,927312:143449637,"36,959.24 ",Legal Aid Payment - Higher Crime
MINISTRY OF JUSTICE,LEGAL AID AGENCY,02/03/2016,Civil Representation,LEGAL AID FUND,RUTH S M HENKE QC,924605:143357387,"-36,936.00 ",Legal Aid Payment - Civil Representation
MINISTRY OF JUSTICE,LEGAL AID AGENCY,02/03/2016,Higher Crime,LEGAL AID FUND,STEPHEN K CADWALADR,919957:143333191,"36,840.41 ",Legal Aid Payment - Higher Crime
MINISTRY OF JUSTICE,LEGAL AID AGENCY,24/03/2016,Higher Crime,LEGAL AID FUND,ASHMANS SOLICITORS,936580:143572266,"36,540.00 ",Legal Aid Payment - Higher Crime
MINISTRY OF JUSTICE,LEGAL AID AGENCY,02/03/2016,Legal Help,LEGAL AID FUND,BINDMANS LLP,921498:143365383,"36,500.00 ",Legal Aid Payment - Legal Help
MINISTRY OF JUSTICE,LEGAL AID AGENCY,02/03/2016,Legal Help,LEGAL AID FUND,BUTLER & CO,923840:143365567,"36,500.00 ",Legal Aid Payment - Legal Help
MINISTRY OF JUSTICE,LEGAL AID AGENCY,09/03/2016,Civil Representation,LEGAL AID FUND,JWP SOLICITORS,926740:143420915,"36,477.38 ",Legal Aid Payment - Civil Representation
MINISTRY OF JUSTICE,LEGAL AID AGENCY,02/03/2016,Lower Crime,LEGAL AID FUND,CARTWRIGHT KING SOLICITORS,922921:143366839,"36,458.00 ",Legal Aid Payment - Lower Crime
MINISTRY OF JUSTICE,LEGAL AID AGENCY,17/03/2016,Higher Crime,LEGAL AID FUND,WHITELOCK & STORR,930723:143518892,"36,452.40 ",Legal Aid Payment - Higher Crime
MINISTRY OF JUSTICE,LEGAL AID AGENCY,09/03/2016,Civil Representation,LEGAL AID FUND,JWP SOLICITORS,926740:143420916,"-36,297.38 ",Legal Aid Payment - Civil Representation
MINISTRY OF JUSTICE,LEGAL AID AGENCY,02/03/2016,Lower Crime,LEGAL AID FUND,RUSSELL & RUSSELL SOLICITORS,923066:143366287,"36,275.00 ",Legal Aid Payment - Lower Crime
MINISTRY OF JUSTICE,LEGAL AID AGENCY,24/03/2016,Civil Representation,LEGAL AID FUND,HEPBURN DELANEY,937158:143524818,"36,238.87 ",Legal Aid Payment - Civil Representation
MINISTRY OF JUSTICE,LEGAL AID AGENCY,17/03/2016,Higher Crime,LEGAL AID FUND,T S LAW LTD,930837:143486222,"36,141.12 ",Legal Aid Payment - Higher Crime
MINISTRY OF JUSTICE,LEGAL AID AGENCY,09/03/2016,Lower Crime,LEGAL AID FUND,O'GARRA'S SOLICITORS,928807:143391432,"36,095.28 ",Legal Aid Payment - Lower Crime
MINISTRY OF JUSTICE,LEGAL AID AGENCY,02/03/2016,Lower Crime,LEGAL AID FUND,MURRAYS SOLICITORS LTD,923909:143340601,"36,038.00 ",Legal Aid Payment - Lower Crime
MINISTRY OF JUSTICE,LEGAL AID AGENCY,02/03/2016,Legal Help,LEGAL AID FUND,T V EDWARDS LLP,923465:143365013,"36,000.00 ",Legal Aid Payment - Legal Help
MINISTRY OF JUSTICE,LEGAL AID AGENCY,02/03/2016,Lower Crime,LEGAL AID FUND,BHATIA BEST LTD,924767:143366900,"36,000.00 ",Legal Aid Payment - Lower Crime
MINISTRY OF JUSTICE,LEGAL AID AGENCY,09/03/2016,Civil Representation,LEGAL AID FUND,ALLETSONS LTD,927615:142849199,"36,000.00 ",Legal Aid Payment - Civil Representation
MINISTRY OF JUSTICE,LEGAL AID AGENCY,02/03/2016,Higher Crime,LEGAL AID FUND,TIMOTHY J MOLONEY QC,922361:143332629,"35,986.90 ",Legal Aid Payment - Higher Crime
MINISTRY OF JUSTICE,LEGAL AID AGENCY,02/03/2016,Civil Representation,LEGAL AID FUND,TINA G COOK QC,919909:143336479,"-35,968.68 ",Legal Aid Payment - Civil Representation
MINISTRY OF JUSTICE,LEGAL AID AGENCY,09/03/2016,Higher Crime,LEGAL AID FUND,THOMAS GODFREY,925914:143421603,"35,966.63 ",Legal Aid Payment - Higher Crime
MINISTRY OF JUSTICE,LEGAL AID AGENCY,02/03/2016,Legal Help,LEGAL AID FUND,LUQMANI THOMPSON & PARTNERS,922018:143365405,"35,953.00 ",Legal Aid Payment - Legal Help
MINISTRY OF JUSTICE,LEGAL AID AGENCY,17/03/2016,Civil Representation,LEGAL AID FUND,DAISY HUGHES,931616:143325051,"-35,942.39 ",Legal Aid Payment - Civil Representation
MINISTRY OF JUSTICE,LEGAL AID AGENCY,17/03/2016,Civil Representation,LEGAL AID FUND,THE WATSON RAMSBOTTOM LIMITED,933022:143492959,"35,831.54 ",Legal Aid Payment - Civil Representation
MINISTRY OF JUSTICE,LEGAL AID AGENCY,02/03/2016,Higher Crime,LEGAL AID FUND,FORBES SOLICITORS,921064:143369959,"35,597.46 ",Legal Aid Payment - Higher Crime
MINISTRY OF JUSTICE,LEGAL AID AGENCY,02/03/2016,Lower Crime,LEGAL AID FUND,MICHAEL PURDON,923543:143366391,"35,533.00 ",Legal Aid Payment - Lower Crime
MINISTRY OF JUSTICE,LEGAL AID AGENCY,24/03/2016,Higher Crime,LEGAL AID FUND,ADRIAN J FARROW,935923:143593389,"35,531.45 ",Legal Aid Payment - Higher Crime
MINISTRY OF JUSTICE,LEGAL AID AGENCY,02/03/2016,Lower Crime,LEGAL AID FUND,DPP LAW LTD,922026:143367052,"35,500.00 ",Legal Aid Payment - Lower Crime
MINISTRY OF JUSTICE,LEGAL AID AGENCY,17/03/2016,Higher Crime,LEGAL AID FUND,FAVELL SMITH & LAWSON,931259:143486223,"35,476.56 ",Legal Aid Payment - Higher Crime
MINISTRY OF JUSTICE,LEGAL AID AGENCY,02/03/2016,Higher Crime,LEGAL AID FUND,MICHAEL F A BORELLI QC,921347:143332455,"35,443.18 ",Legal Aid Payment - Higher Crime
MINISTRY OF JUSTICE,LEGAL AID AGENCY,24/03/2016,Civil Representation,LEGAL AID FUND,MAKIN DIXON SOLICITORS LTD,936303:143539258,"35,419.40 ",Legal Aid Payment - Civil Representation
MINISTRY OF JUSTICE,LEGAL AID AGENCY,02/03/2016,Higher Crime,LEGAL AID FUND,DREW JONES,921571:143369685,"35,337.42 ",Legal Aid Payment - Higher Crime
MINISTRY OF JUSTICE,LEGAL AID AGENCY,02/03/2016,Lower Crime,LEGAL AID FUND,LHD SOLICITORS LTD,923870:143366984,"35,100.00 ",Legal Aid Payment - Lower Crime
MINISTRY OF JUSTICE,LEGAL AID AGENCY,02/03/2016,Lower Crime,LEGAL AID FUND,GEOFFREY FORRESTER & CO,923924:143366427,"35,100.00 ",Legal Aid Payment - Lower Crime
MINISTRY OF JUSTICE,LEGAL AID AGENCY,09/03/2016,Higher Crime,LEGAL AID FUND,WESSEX SOLICITORS CHAMBERS,926800:143450240,"35,082.09 ",Legal Aid Payment - Higher Crime
MINISTRY OF JUSTICE,LEGAL AID AGENCY,24/03/2016,Civil Representation,LEGAL AID FUND,GOODMAN RAY,935135:143599084,"35,070.60 ",Legal Aid Payment - Civil Representation
MINISTRY OF JUSTICE,LEGAL AID AGENCY,02/03/2016,Lower Crime,LEGAL AID FUND,CONNOR ROSS-BROWN SOLICITORS,920260:143367459,"35,000.00 ",Legal Aid Payment - Lower Crime
MINISTRY OF JUSTICE,LEGAL AID AGENCY,02/03/2016,Lower Crime,LEGAL AID FUND,POOLE ALCOCK LLP,920547:143366508,"35,000.00 ",Legal Aid Payment - Lower Crime
MINISTRY OF JUSTICE,LEGAL AID AGENCY,02/03/2016,Lower Crime,LEGAL AID FUND,ROSS SOLICITORS LTD,921165:143366108,"35,000.00 ",Legal Aid Payment - Lower Crime
MINISTRY OF JUSTICE,LEGAL AID AGENCY,02/03/2016,Lower Crime,LEGAL AID FUND,LUMB & MACGILL,922982:143366718,"35,000.00 ",Legal Aid Payment - Lower Crime
MINISTRY OF JUSTICE,LEGAL AID AGENCY,02/03/2016,Lower Crime,LEGAL AID FUND,ROBERT LIZAR,923038:143366947,"35,000.00 ",Legal Aid Payment - Lower Crime
MINISTRY OF JUSTICE,LEGAL AID AGENCY,02/03/2016,Lower Crime,LEGAL AID FUND,LAWRENCE & CO,924408:143366512,"35,000.00 ",Legal Aid Payment - Lower Crime
MINISTRY OF JUSTICE,LEGAL AID AGENCY,02/03/2016,Lower Crime,LEGAL AID FUND,STEPHEN RIMMER LLP,921036:143366755,"34,900.00 ",Legal Aid Payment - Lower Crime
MINISTRY OF JUSTICE,LEGAL AID AGENCY,09/03/2016,Civil Representation,LEGAL AID FUND,IAN SHIELS,928265:134897889,"-34,848.00 ",Legal Aid Payment - Civil Representation
MINISTRY OF JUSTICE,LEGAL AID AGENCY,17/03/2016,Higher Crime,LEGAL AID FUND,HADDOW AND KAYE SOLICITORS,930747:143498451,"34,819.08 ",Legal Aid Payment - Higher Crime
MINISTRY OF JUSTICE,LEGAL AID AGENCY,09/03/2016,Civil Representation,LEGAL AID FUND,JACKSON WEST,926147:143378744,"34,791.47 ",Legal Aid Payment - Civil Representation
MINISTRY OF JUSTICE,LEGAL AID AGENCY,02/03/2016,Lower Crime,LEGAL AID FUND,TAYLOR HALDANE BARLEX LLP,921536:143366883,"34,754.00 ",Legal Aid Payment - Lower Crime
MINISTRY OF JUSTICE,LEGAL AID AGENCY,24/03/2016,Civil Representation,LEGAL AID FUND,AVERY NAYLOR LTD,937708:143537826,"-34,741.90 ",Legal Aid Payment - Civil Representation
MINISTRY OF JUSTICE,LEGAL AID AGENCY,17/03/2016,Higher Crime,LEGAL AID FUND,LAURA G BRICKMAN,930389:143461554,"34,680.62 ",Legal Aid Payment - Higher Crime
MINISTRY OF JUSTICE,LEGAL AID AGENCY,17/03/2016,Higher Crime,LEGAL AID FUND,DAVID A MCGONIGAL,932582:143474814,"34,680.62 ",Legal Aid Payment - Higher Crime
MINISTRY OF JUSTICE,LEGAL AID AGENCY,02/03/2016,Lower Crime,LEGAL AID FUND,STEVENS SOLICITORS,922996:143366850,"34,600.00 ",Legal Aid Payment - Lower Crime
MINISTRY OF JUSTICE,LEGAL AID AGENCY,17/03/2016,Civil Representation,LEGAL AID FUND,THOMAS COKE-SMYTH,933175:143477931,"34,462.06 ",Legal Aid Payment - Civil Representation
MINISTRY OF JUSTICE,LEGAL AID AGENCY,17/03/2016,Higher Crime,LEGAL AID FUND,STEPHEN RIMMER LLP,931847:143498393,"34,357.52 ",Legal Aid Payment - Higher Crime
MINISTRY OF JUSTICE,LEGAL AID AGENCY,09/03/2016,Higher Crime,LEGAL AID FUND,QAMAR SOLICITORS,928837:143386647,"34,326.90 ",Legal Aid Payment - Higher Crime
MINISTRY OF JUSTICE,LEGAL AID AGENCY,17/03/2016,Higher Crime,LEGAL AID FUND,POWELL SPENCER AND PARTNERS,932447:143533479,"34,311.85 ",Legal Aid Payment - Higher Crime
MINISTRY OF JUSTICE,LEGAL AID AGENCY,02/03/2016,Legal Help,LEGAL AID FUND,SUTOVIC & HARTIGAN,920685:143364713,"34,300.00 ",Legal Aid Payment - Legal Help
MINISTRY OF JUSTICE,LEGAL AID AGENCY,02/03/2016,Lower Crime,LEGAL AID FUND,GHP LEGAL,921556:143366672,"34,300.00 ",Legal Aid Payment - Lower Crime
MINISTRY OF JUSTICE,LEGAL AID AGENCY,02/03/2016,Lower Crime,LEGAL AID FUND,CROWE HUMBLE WESENCRAFT,922443:143366923,"34,200.00 ",Legal Aid Payment - Lower Crime
MINISTRY OF JUSTICE,LEGAL AID AGENCY,02/03/2016,Lower Crime,LEGAL AID FUND,EBR ATTRIDGE LLP,923895:143367028,"34,200.00 ",Legal Aid Payment - Lower Crime
MINISTRY OF JUSTICE,LEGAL AID AGENCY,02/03/2016,Lower Crime,LEGAL AID FUND,HINE SOLICITORS,920044:143367292,"34,167.00 ",Legal Aid Payment - Lower Crime
MINISTRY OF JUSTICE,LEGAL AID AGENCY,02/03/2016,Lower Crime,LEGAL AID FUND,SUSSEX DEFENCE SOLICITORS,924636:143367159,"34,000.00 ",Legal Aid Payment - Lower Crime
MINISTRY OF JUSTICE,LEGAL AID AGENCY,02/03/2016,Lower Crime,LEGAL AID FUND,MARTYN HEWETT,920163:143366032,"33,900.00 ",Legal Aid Payment - Lower Crime
MINISTRY OF JUSTICE,LEGAL AID AGENCY,02/03/2016,Legal Help,LEGAL AID FUND,HUNT & COOMBS LLP,924783:143365206,"33,900.00 ",Legal Aid Payment - Legal Help
MINISTRY OF JUSTICE,LEGAL AID AGENCY,02/03/2016,Lower Crime,LEGAL AID FUND,ACA LAW LTD,922020:143366822,"33,875.00 ",Legal Aid Payment - Lower Crime
MINISTRY OF JUSTICE,LEGAL AID AGENCY,24/03/2016,Civil Representation,LEGAL AID FUND,AVERY NAYLOR LTD,937708:143537806,"33,872.76 ",Legal Aid Payment - Civil Representation
MINISTRY OF JUSTICE,LEGAL AID AGENCY,02/03/2016,Lower Crime,LEGAL AID FUND,RMNJ SOLICITORS ***,920531:143366742,"33,855.00 ",Legal Aid Payment - Lower Crime
MINISTRY OF JUSTICE,LEGAL AID AGENCY,02/03/2016,Lower Crime,LEGAL AID FUND,STEVEN YOUNG & CO INC ROWBIS,922486:143366801,"33,825.00 ",Legal Aid Payment - Lower Crime
MINISTRY OF JUSTICE,LEGAL AID AGENCY,09/03/2016,Civil Representation,LEGAL AID FUND,DANIEL WOODMAN & CO LTD,925194:143442611,"33,733.55 ",Legal Aid Payment - Civil Representation
MINISTRY OF JUSTICE,LEGAL AID AGENCY,09/03/2016,Higher Crime,LEGAL AID FUND,EBR ATTRIDGE LLP,925993:143426205,"33,720.40 ",Legal Aid Payment - Higher Crime
MINISTRY OF JUSTICE,LEGAL AID AGENCY,24/03/2016,Higher Crime,LEGAL AID FUND,O'GARRA'S SOLICITORS,937771:143559869,"33,720.40 ",Legal Aid Payment - Higher Crime
MINISTRY OF JUSTICE,LEGAL AID AGENCY,24/03/2016,Civil Representation,LEGAL AID FUND,SWITALSKI'S SOLICITORS LTD,935719:143529035,"33,600.00 ",Legal Aid Payment - Civil Representation
MINISTRY OF JUSTICE,LEGAL AID AGENCY,09/03/2016,Civil Representation,LEGAL AID FUND,DANIEL WOODMAN & CO LTD,925194:143442612,"-33,518.55 ",Legal Aid Payment - Civil Representation
MINISTRY OF JUSTICE,LEGAL AID AGENCY,02/03/2016,Lower Crime,LEGAL AID FUND,KENT DEFENCE,919986:143367245,"33,500.00 ",Legal Aid Payment - Lower Crime
MINISTRY OF JUSTICE,LEGAL AID AGENCY,09/03/2016,Higher Crime,LEGAL AID FUND,REBECCA AUSTIN,927446:143401627,"33,429.48 ",Legal Aid Payment - Higher Crime
MINISTRY OF JUSTICE,LEGAL AID AGENCY,02/03/2016,Lower Crime,LEGAL AID FUND,CARTER OSBORNE LTD,920089:143366559,"33,428.00 ",Legal Aid Payment - Lower Crime
MINISTRY OF JUSTICE,LEGAL AID AGENCY,24/03/2016,Higher Crime,LEGAL AID FUND,CARTWRIGHT KING SOLICITORS,934662:143570957,"33,411.44 ",Legal Aid Payment - Higher Crime
MINISTRY OF JUSTICE,LEGAL AID AGENCY,02/03/2016,Legal Help,LEGAL AID FUND,AASKELLS SOLICITORS & ADVOCATES,920222:143364717,"33,325.00 ",Legal Aid Payment - Legal Help
MINISTRY OF JUSTICE,LEGAL AID AGENCY,09/03/2016,Civil Representation,LEGAL AID FUND,DAMIAN R L GARRIDO,926714:3000000480280022,"33,307.20 ",Legal Aid Payment - Civil Representation
MINISTRY OF JUSTICE,LEGAL AID AGENCY,02/03/2016,Lower Crime,LEGAL AID FUND,SMITH PARTNERSHIP,922960:143366553,"33,300.00 ",Legal Aid Payment - Lower Crime
MINISTRY OF JUSTICE,LEGAL AID AGENCY,02/03/2016,Civil Representation,LEGAL AID FUND,YOLANDA E PEMBERTON,923261:143337046,"33,242.40 ",Legal Aid Payment - Civil Representation
MINISTRY OF JUSTICE,LEGAL AID AGENCY,17/03/2016,Higher Crime,LEGAL AID FUND,GILLIAN BATTS,931548:143533384,"33,084.62 ",Legal Aid Payment - Higher Crime
MINISTRY OF JUSTICE,LEGAL AID AGENCY,02/03/2016,Higher Crime,LEGAL AID FUND,RICHARD P ATKINS,923195:143345156,"33,074.80 ",Legal Aid Payment - Higher Crime
MINISTRY OF JUSTICE,LEGAL AID AGENCY,02/03/2016,Lower Crime,LEGAL AID FUND,TUCKERS SOLICITORS LLP,920024:143367189,"33,000.00 ",Legal Aid Payment - Lower Crime
MINISTRY OF JUSTICE,LEGAL AID AGENCY,02/03/2016,Lower Crime,LEGAL AID FUND,PALMERS CRIMINAL DEFENCE SOLICITORS,924248:143366980,"33,000.00 ",Legal Aid Payment - Lower Crime
MINISTRY OF JUSTICE,LEGAL AID AGENCY,09/03/2016,Higher Crime,LEGAL AID FUND,THE LAW PARTNERSHIP SOLICITORS LLP,926050:143427185,"32,814.42 ",Legal Aid Payment - Higher Crime
MINISTRY OF JUSTICE,LEGAL AID AGENCY,02/03/2016,Legal Help,LEGAL AID FUND,LISA MARIE MCNULTY SOLICITOR,921074:143365480,"32,798.00 ",Legal Aid Payment - Legal Help
MINISTRY OF JUSTICE,LEGAL AID AGENCY,17/03/2016,Civil Representation,LEGAL AID FUND,SORREL H DIXON,932566:143525068,"32,788.80 ",Legal Aid Payment - Civil Representation
MINISTRY OF JUSTICE,LEGAL AID AGENCY,02/03/2016,Higher Crime,LEGAL AID FUND,PETER L WILCOCK,922360:143332037,"32,777.88 ",Legal Aid Payment - Higher Crime
MINISTRY OF JUSTICE,LEGAL AID AGENCY,02/03/2016,Legal Help,LEGAL AID FUND,SENTINEL SOLICITORS,921711:143365821,"32,758.00 ",Legal Aid Payment - Legal Help
MINISTRY OF JUSTICE,LEGAL AID AGENCY,02/03/2016,Higher Crime,LEGAL AID FUND,ARORA LODHI HEATH,922060:143346024,"32,679.05 ",Legal Aid Payment - Higher Crime
MINISTRY OF JUSTICE,LEGAL AID AGENCY,02/03/2016,Higher Crime,LEGAL AID FUND,DAVID HAROUNOFF,921916:143333325,"32,650.54 ",Legal Aid Payment - Higher Crime
MINISTRY OF JUSTICE,LEGAL AID AGENCY,24/03/2016,Civil Representation,LEGAL AID FUND,FRANCES J JUDD,936479:143566278,"32,562.00 ",Legal Aid Payment - Civil Representation
MINISTRY OF JUSTICE,LEGAL AID AGENCY,02/03/2016,Higher Crime,LEGAL AID FUND,CARTER MOORE SOLICITORS LTD,923872:143346085,"32,509.10 ",Legal Aid Payment - Higher Crime
MINISTRY OF JUSTICE,LEGAL AID AGENCY,02/03/2016,Civil Representation,LEGAL AID FUND,ALEXA R STOREY-REA,922716:143336473,"-32,486.40 ",Legal Aid Payment - Civil Representation
MINISTRY OF JUSTICE,LEGAL AID AGENCY,09/03/2016,Higher Crime,LEGAL AID FUND,LLOYDS PR SOLICITORS-ADVOCATE,925487:143401746,"32,448.04 ",Legal Aid Payment - Higher Crime
MINISTRY OF JUSTICE,LEGAL AID AGENCY,24/03/2016,Civil Representation,LEGAL AID FUND,SUSAN GROCOTT QC,936406:143564096,"32,432.40 ",Legal Aid Payment - Civil Representation
MINISTRY OF JUSTICE,LEGAL AID AGENCY,02/03/2016,Higher Crime,LEGAL AID FUND,MORGAN ROSE LTD,923388:143379162,"32,423.74 ",Legal Aid Payment - Higher Crime
MINISTRY OF JUSTICE,LEGAL AID AGENCY,02/03/2016,Lower Crime,LEGAL AID FUND,GOLDSTONES SOLICITORS LTD,921635:143366133,"32,400.00 ",Legal Aid Payment - Lower Crime
MINISTRY OF JUSTICE,LEGAL AID AGENCY,02/03/2016,Higher Crime,LEGAL AID FUND,HARRIS SOLICITORS,920498:143368321,"32,314.98 ",Legal Aid Payment - Higher Crime
MINISTRY OF JUSTICE,LEGAL AID AGENCY,17/03/2016,Higher Crime,LEGAL AID FUND,NICHOLAS HEARN,931629:143486689,"32,293.61 ",Legal Aid Payment - Higher Crime
MINISTRY OF JUSTICE,LEGAL AID AGENCY,02/03/2016,Legal Help,LEGAL AID FUND,THALIWAL & CO LTD,922938:143365499,"32,287.00 ",Legal Aid Payment - Legal Help
MINISTRY OF JUSTICE,LEGAL AID AGENCY,17/03/2016,Higher Crime,LEGAL AID FUND,N P SOLICITORS,931101:143534359,"32,234.42 ",Legal Aid Payment - Higher Crime
MINISTRY OF JUSTICE,LEGAL AID AGENCY,02/03/2016,Higher Crime,LEGAL AID FUND,CHIVERS SOLICITORS,920924:143345596,"32,227.94 ",Legal Aid Payment - Higher Crime
MINISTRY OF JUSTICE,LEGAL AID AGENCY,09/03/2016,Civil Representation,LEGAL AID FUND,CHARLOTTE F PITTS,928643:143420629,"32,215.20 ",Legal Aid Payment - Civil Representation
MINISTRY OF JUSTICE,LEGAL AID AGENCY,02/03/2016,Higher Crime,LEGAL AID FUND,DANIEL JAMESON,924195:143380647,"32,200.01 ",Legal Aid Payment - Higher Crime
MINISTRY OF JUSTICE,LEGAL AID AGENCY,09/03/2016,Higher Crime,LEGAL AID FUND,VICKERS CHISMAN & WISHLADE,927273:143387363,"32,184.01 ",Legal Aid Payment - Higher Crime
MINISTRY OF JUSTICE,LEGAL AID AGENCY,09/03/2016,Civil Representation,LEGAL AID FUND,WEST LONDON LAW SOLICITORS,925964:143227135,"32,119.04 ",Legal Aid Payment - Civil Representation
MINISTRY OF JUSTICE,LEGAL AID AGENCY,02/03/2016,Lower Crime,LEGAL AID FUND,ROBERTSON'S SOLICITORS,924752:143366468,"32,100.00 ",Legal Aid Payment - Lower Crime
MINISTRY OF JUSTICE,LEGAL AID AGENCY,09/03/2016,Higher Crime,LEGAL AID FUND,CHRISTOPHER W MEREDITH,925942:143414231,"32,021.28 ",Legal Aid Payment - Higher Crime
MINISTRY OF JUSTICE,LEGAL AID AGENCY,02/03/2016,Lower Crime,LEGAL AID FUND,BULLIVANT LAW LTD,924250:143366977,"32,000.00 ",Legal Aid Payment - Lower Crime
MINISTRY OF JUSTICE,LEGAL AID AGENCY,02/03/2016,Legal Help,LEGAL AID FUND,GUILE NICHOLAS-INC DONALD GALBRAITH & CO,923158:143365957,"31,968.00 ",Legal Aid Payment - Legal Help
MINISTRY OF JUSTICE,LEGAL AID AGENCY,09/03/2016,Higher Crime,LEGAL AID FUND,RAHMAN RAVELLI SOLICTORS LTD,928367:143421666,"31,967.72 ",Legal Aid Payment - Higher Crime
MINISTRY OF JUSTICE,LEGAL AID AGENCY,17/03/2016,Legal Help,LEGAL AID FUND,DIRECT HELP & ADVICE LTD,933465:143511430,"31,947.48 ",Legal Aid Payment - Legal Help
MINISTRY OF JUSTICE,LEGAL AID AGENCY,09/03/2016,Higher Crime,LEGAL AID FUND,AHMED & CO,926444:143414472,"31,946.62 ",Legal Aid Payment - Higher Crime
MINISTRY OF JUSTICE,LEGAL AID AGENCY,02/03/2016,Lower Crime,LEGAL AID FUND,REEDS SOLICITORS LTD,920505:143367272,"31,924.00 ",Legal Aid Payment - Lower Crime
MINISTRY OF JUSTICE,LEGAL AID AGENCY,02/03/2016,Lower Crime,LEGAL AID FUND,GRAHAM EVANS & PARTNERS LLP,922047:143366148,"31,900.00 ",Legal Aid Payment - Lower Crime
MINISTRY OF JUSTICE,LEGAL AID AGENCY,02/03/2016,Lower Crime,LEGAL AID FUND,KYLE LEGAL PRACTICE,920514:143367264,"31,744.00 ",Legal Aid Payment - Lower Crime
MINISTRY OF JUSTICE,LEGAL AID AGENCY,02/03/2016,Higher Crime,LEGAL AID FUND,IMRAN SHAFI,921255:143332278,"31,679.28 ",Legal Aid Payment - Higher Crime
MINISTRY OF JUSTICE,LEGAL AID AGENCY,24/03/2016,Higher Crime,LEGAL AID FUND,MANN & CO SOLICITORS,937763:143546650,"31,658.09 ",Legal Aid Payment - Higher Crime
MINISTRY OF JUSTICE,LEGAL AID AGENCY,09/03/2016,Civil Representation,LEGAL AID FUND,CROCKETT LIMITED TA CROCKETT & CO SOLICITORS,927268:143406617,"31,605.09 ",Legal Aid Payment - Civil Representation
MINISTRY OF JUSTICE,LEGAL AID AGENCY,02/03/2016,Lower Crime,LEGAL AID FUND,JOSEPH HILL & CO,924407:143366513,"31,600.00 ",Legal Aid Payment - Lower Crime
MINISTRY OF JUSTICE,LEGAL AID AGENCY,09/03/2016,Civil Representation,LEGAL AID FUND,KING STREET SOLICITORS LLP,925199:141512813,"31,599.53 ",Legal Aid Payment - Civil Representation
MINISTRY OF JUSTICE,LEGAL AID AGENCY,02/03/2016,Lower Crime,LEGAL AID FUND,"GAMMON,PIERCY & GAIGER",920646:143366062,"31,575.00 ",Legal Aid Payment - Lower Crime
MINISTRY OF JUSTICE,LEGAL AID AGENCY,09/03/2016,Higher Crime,LEGAL AID FUND,MARK JONES & PARTNERS,928773:143401189,"31,570.64 ",Legal Aid Payment - Higher Crime
MINISTRY OF JUSTICE,LEGAL AID AGENCY,02/03/2016,Lower Crime,LEGAL AID FUND,BISHOP & LIGHT SOLICITORS,920683:143366045,"31,500.00 ",Legal Aid Payment - Lower Crime
MINISTRY OF JUSTICE,LEGAL AID AGENCY,02/03/2016,Lower Crime,LEGAL AID FUND,DRISCOLL YOUNG SOLICITORS LIMITED,921533:143366885,"31,481.00 ",Legal Aid Payment - Lower Crime
MINISTRY OF JUSTICE,LEGAL AID AGENCY,17/03/2016,Higher Crime,LEGAL AID FUND,ROBERT A ENGLISH,930507:143499796,"31,456.10 ",Legal Aid Payment - Higher Crime
MINISTRY OF JUSTICE,LEGAL AID AGENCY,02/03/2016,Lower Crime,LEGAL AID FUND,YARWOOD & STUBLEY,923545:143366389,"31,400.00 ",Legal Aid Payment - Lower Crime
MINISTRY OF JUSTICE,LEGAL AID AGENCY,24/03/2016,Civil Representation,LEGAL AID FUND,SALLY WILCOCK & CO,935612:143586696,"31,320.08 ",Legal Aid Payment - Civil Representation
MINISTRY OF JUSTICE,LEGAL AID AGENCY,09/03/2016,Civil Representation,LEGAL AID FUND,FRANK T FEEHAN QC,926280:143442912,"31,320.00 ",Legal Aid Payment - Civil Representation
MINISTRY OF JUSTICE,LEGAL AID AGENCY,24/03/2016,Civil Representation,LEGAL AID FUND,HRS FAMILY LAW SOLICITORS LTD,936226:143539895,"31,213.76 ",Legal Aid Payment - Civil Representation
MINISTRY OF JUSTICE,LEGAL AID AGENCY,17/03/2016,Higher Crime,LEGAL AID FUND,JAMES GRAY,933163:143520318,"31,181.04 ",Legal Aid Payment - Higher Crime
MINISTRY OF JUSTICE,LEGAL AID AGENCY,24/03/2016,Higher Crime,LEGAL AID FUND,NOBLE SOLICITORS-ADVOCATE,936927:143571136,"31,138.10 ",Legal Aid Payment - Higher Crime
MINISTRY OF JUSTICE,LEGAL AID AGENCY,02/03/2016,Higher Crime,LEGAL AID FUND,CHRISTOPHER J MILLINGTON,920793:143332514,"31,123.22 ",Legal Aid Payment - Higher Crime
MINISTRY OF JUSTICE,LEGAL AID AGENCY,24/03/2016,Civil Representation,LEGAL AID FUND,ALEXA R STOREY-REA,935444:143587220,"31,039.07 ",Legal Aid Payment - Civil Representation
MINISTRY OF JUSTICE,LEGAL AID AGENCY,17/03/2016,Higher Crime,LEGAL AID FUND,KITTY TAYLOR,932041:143461189,"31,017.84 ",Legal Aid Payment - Higher Crime
MINISTRY OF JUSTICE,LEGAL AID AGENCY,17/03/2016,Higher Crime,LEGAL AID FUND,KATHERINE A PIERPOINT,933327:143475625,"31,017.84 ",Legal Aid Payment - Higher Crime
MINISTRY OF JUSTICE,LEGAL AID AGENCY,02/03/2016,Lower Crime,LEGAL AID FUND,RODNEY WARREN & CO LTD,921151:143366041,"31,000.00 ",Legal Aid Payment - Lower Crime
MINISTRY OF JUSTICE,LEGAL AID AGENCY,02/03/2016,Lower Crime,LEGAL AID FUND,BLACKWELLS,922972:143366806,"31,000.00 ",Legal Aid Payment - Lower Crime
MINISTRY OF JUSTICE,LEGAL AID AGENCY,02/03/2016,Civil Representation,LEGAL AID FUND,KEOGHS NICHOLLS LINDSELL & HARRIS,923054:143322916,"31,000.00 ",Legal Aid Payment - Civil Representation
MINISTRY OF JUSTICE,LEGAL AID AGENCY,24/03/2016,Higher Crime,LEGAL AID FUND,SONN MACMILLAN WALKER LTD,936729:143547542,"30,926.40 ",Legal Aid Payment - Higher Crime
MINISTRY OF JUSTICE,LEGAL AID AGENCY,17/03/2016,Civil Representation,LEGAL AID FUND,T V EDWARDS LLP,929519:143452783,"30,925.25 ",Legal Aid Payment - Civil Representation
MINISTRY OF JUSTICE,LEGAL AID AGENCY,24/03/2016,Civil Representation,LEGAL AID FUND,HRS FAMILY LAW SOLICITORS LTD,936226:143539898,"-30,903.76 ",Legal Aid Payment - Civil Representation
MINISTRY OF JUSTICE,LEGAL AID AGENCY,17/03/2016,Higher Crime,LEGAL AID FUND,LEDGISTERS SOLICITORS,931799:143519980,"30,897.14 ",Legal Aid Payment - Higher Crime
MINISTRY OF JUSTICE,LEGAL AID AGENCY,17/03/2016,Higher Crime,LEGAL AID FUND,AMOSU ROBINSHAW,932923:143533611,"30,897.14 ",Legal Aid Payment - Higher Crime
MINISTRY OF JUSTICE,LEGAL AID AGENCY,24/03/2016,Higher Crime,LEGAL AID FUND,WAINWRIGHT & CUMMINS LLP,935137:143594886,"30,897.14 ",Legal Aid Payment - Higher Crime
MINISTRY OF JUSTICE,LEGAL AID AGENCY,02/03/2016,Lower Crime,LEGAL AID FUND,KAIM TODNER SOLICITORS LIMITED,920678:143366019,"30,895.00 ",Legal Aid Payment - Lower Crime
MINISTRY OF JUSTICE,LEGAL AID AGENCY,02/03/2016,Legal Help,LEGAL AID FUND,JOHN F HARRISON LTD,922693:143365945,"30,755.00 ",Legal Aid Payment - Legal Help
MINISTRY OF JUSTICE,LEGAL AID AGENCY,02/03/2016,Legal Help,LEGAL AID FUND,CONFREYS,921588:143364831,"30,750.00 ",Legal Aid Payment - Legal Help
MINISTRY OF JUSTICE,LEGAL AID AGENCY,09/03/2016,Civil Representation,LEGAL AID FUND,WEST LONDON LAW SOLICITORS,925964:143227139,"-30,686.18 ",Legal Aid Payment - Civil Representation
MINISTRY OF JUSTICE,LEGAL AID AGENCY,02/03/2016,Lower Crime,LEGAL AID FUND,CARTER OSBORNE LTD,920919:143367407,"30,686.00 ",Legal Aid Payment - Lower Crime
MINISTRY OF JUSTICE,LEGAL AID AGENCY,02/03/2016,Higher Crime,LEGAL AID FUND,SAMANTHA RIGGS,922356:143344583,"30,658.18 ",Legal Aid Payment - Higher Crime
MINISTRY OF JUSTICE,LEGAL AID AGENCY,02/03/2016,Lower Crime,LEGAL AID FUND,LLOYD & ROWE,921140:143366128,"30,600.00 ",Legal Aid Payment - Lower Crime
MINISTRY OF JUSTICE,LEGAL AID AGENCY,02/03/2016,Legal Help,LEGAL AID FUND,QS JACKSON CANTER LTD,922600:143364909,"30,583.00 ",Legal Aid Payment - Legal Help
MINISTRY OF JUSTICE,LEGAL AID AGENCY,17/03/2016,Higher Crime,LEGAL AID FUND,ARABELLA E B MACDONALD,930182:143520353,"30,577.61 ",Legal Aid Payment - Higher Crime
MINISTRY OF JUSTICE,LEGAL AID AGENCY,17/03/2016,Civil Representation,LEGAL AID FUND,JOHN P GODFREY,930357:143492719,"30,571.20 ",Legal Aid Payment - Civil Representation
MINISTRY OF JUSTICE,LEGAL AID AGENCY,17/03/2016,Higher Crime,LEGAL AID FUND,RKN SOLICITORS LTD,931727:143535073,"30,556.46 ",Legal Aid Payment - Higher Crime
MINISTRY OF JUSTICE,LEGAL AID AGENCY,02/03/2016,Higher Crime,LEGAL AID FUND,ABV SOLICITORS,923431:143345133,"30,526.48 ",Legal Aid Payment - Higher Crime
MINISTRY OF JUSTICE,LEGAL AID AGENCY,02/03/2016,Lower Crime,LEGAL AID FUND,FRASER DAWBARNS LLP,920129:143366586,"30,500.00 ",Legal Aid Payment - Lower Crime
MINISTRY OF JUSTICE,LEGAL AID AGENCY,02/03/2016,Lower Crime,LEGAL AID FUND,HUMPHRYS AND CO,922435:143366678,"30,500.00 ",Legal Aid Payment - Lower Crime
MINISTRY OF JUSTICE,LEGAL AID AGENCY,02/03/2016,Legal Help,LEGAL AID FUND,SOUTHERNS,923512:143364971,"30,387.00 ",Legal Aid Payment - Legal Help
MINISTRY OF JUSTICE,LEGAL AID AGENCY,09/03/2016,Higher Crime,LEGAL AID FUND,BMV SOLICITORS LTD,926019:143387653,"30,371.65 ",Legal Aid Payment - Higher Crime
MINISTRY OF JUSTICE,LEGAL AID AGENCY,02/03/2016,Legal Help,LEGAL AID FUND,ELDER RAHIMI LIMITED,920571:143365471,"30,322.00 ",Legal Aid Payment - Legal Help
MINISTRY OF JUSTICE,LEGAL AID AGENCY,02/03/2016,Lower Crime,LEGAL AID FUND,COBAINS SOLICITORS,921953:143366765,"30,300.00 ",Legal Aid Payment - Lower Crime
MINISTRY OF JUSTICE,LEGAL AID AGENCY,17/03/2016,Higher Crime,LEGAL AID FUND,NOBLE SOLICITORS,931833:143535040,"30,279.79 ",Legal Aid Payment - Higher Crime
MINISTRY OF JUSTICE,LEGAL AID AGENCY,02/03/2016,Lower Crime,LEGAL AID FUND,REEVES  & CO SOLICITORS,924660:143340602,"30,277.00 ",Legal Aid Payment - Lower Crime
MINISTRY OF JUSTICE,LEGAL AID AGENCY,17/03/2016,Higher Crime,LEGAL AID FUND,DEBORAH A MORRIS,932649:143533426,"30,229.32 ",Legal Aid Payment - Higher Crime
MINISTRY OF JUSTICE,LEGAL AID AGENCY,24/03/2016,Higher Crime,LEGAL AID FUND,DEXTER HENRY & CO,934716:143570914,"30,228.74 ",Legal Aid Payment - Higher Crime
MINISTRY OF JUSTICE,LEGAL AID AGENCY,09/03/2016,Higher Crime,LEGAL AID FUND,S H DAD SOLICITORS,926413:143400758,"30,227.45 ",Legal Aid Payment - Higher Crime
MINISTRY OF JUSTICE,LEGAL AID AGENCY,24/03/2016,Higher Crime,LEGAL AID FUND,CARTWRIGHT KING SOLICITORS,934662:143602040,"30,194.93 ",Legal Aid Payment - Higher Crime
MINISTRY OF JUSTICE,LEGAL AID AGENCY,24/03/2016,Civil Representation,LEGAL AID FUND,STERNBERG REED SOLICITORS,936119:143552631,"30,157.00 ",Legal Aid Payment - Civil Representation
MINISTRY OF JUSTICE,LEGAL AID AGENCY,02/03/2016,Higher Crime,LEGAL AID FUND,LEON KAZAKOS,921345:142733997,"30,106.98 ",Legal Aid Payment - Higher Crime
MINISTRY OF JUSTICE,LEGAL AID AGENCY,17/03/2016,Higher Crime,LEGAL AID FUND,RICHARD N JORY QC,932242:143486093,"30,104.90 ",Legal Aid Payment - Higher Crime
MINISTRY OF JUSTICE,LEGAL AID AGENCY,09/03/2016,Higher Crime,LEGAL AID FUND,FELLOWES LLP,928460:143402189,"30,098.38 ",Legal Aid Payment - Higher Crime
MINISTRY OF JUSTICE,LEGAL AID AGENCY,02/03/2016,Higher Crime,LEGAL AID FUND,EDWARD FAIL BRADSHAW & WATERSON -ADV.,924068:143333193,"30,062.63 ",Legal Aid Payment - Higher Crime
MINISTRY OF JUSTICE,LEGAL AID AGENCY,02/03/2016,Lower Crime,LEGAL AID FUND,HINE SOLICITORS,920043:143367293,"30,040.00 ",Legal Aid Payment - Lower Crime
MINISTRY OF JUSTICE,LEGAL AID AGENCY,09/03/2016,Legal Help,LEGAL AID FUND,MIGRANT LEGAL PROJECT,928511:143457002,"30,013.00 ",Legal Aid Payment - Legal Help
MINISTRY OF JUSTICE,LEGAL AID AGENCY,02/03/2016,Lower Crime,LEGAL AID FUND,OWEN NASH & CO,921637:143380064,"30,000.00 ",Legal Aid Payment - Lower Crime
MINISTRY OF JUSTICE,LEGAL AID AGENCY,02/03/2016,Lower Crime,LEGAL AID FUND,JOHN DELANEY & CO SOLICITORS,922985:143366703,"30,000.00 ",Legal Aid Payment - Lower Crime
MINISTRY OF JUSTICE,LEGAL AID AGENCY,02/03/2016,Civil Representation,LEGAL AID FUND,STEEL & SHAMASH,921657:143335468,"-30,000.00 ",Legal Aid Payment - Civil Representation
MINISTRY OF JUSTICE,LEGAL AID AGENCY,17/03/2016,Civil Representation,LEGAL AID FUND,ELAINE PARKES SOLICITORS,933476:143525285,"29,999.99 ",Legal Aid Payment - Civil Representation
MINISTRY OF JUSTICE,LEGAL AID AGENCY,17/03/2016,Higher Crime,LEGAL AID FUND,WOODS SOLICITORS,930019:143534114,"29,997.89 ",Legal Aid Payment - Higher Crime
MINISTRY OF JUSTICE,LEGAL AID AGENCY,17/03/2016,Civil Representation,LEGAL AID FUND,ATKINS HOPE SOLICITORS LIMITED,931307:143528521,"29,995.15 ",Legal Aid Payment - Civil Representation
MINISTRY OF JUSTICE,LEGAL AID AGENCY,02/03/2016,Lower Crime,LEGAL AID FUND,SWITALSKI'S SOLICITORS LTD,924422:143366456,"29,952.00 ",Legal Aid Payment - Lower Crime
MINISTRY OF JUSTICE,LEGAL AID AGENCY,09/03/2016,Higher Crime,LEGAL AID FUND,STEPHEN UTTLEY,928621:143450164,"29,949.20 ",Legal Aid Payment - Higher Crime
MINISTRY OF JUSTICE,LEGAL AID AGENCY,02/03/2016,Lower Crime,LEGAL AID FUND,PENFOLD & MCPHERSON,922513:143366259,"29,945.00 ",Legal Aid Payment - Lower Crime
MINISTRY OF JUSTICE,LEGAL AID AGENCY,02/03/2016,Legal Help,LEGAL AID FUND,GRAHAME STOWE BATESON,922454:143365515,"29,944.00 ",Legal Aid Payment - Legal Help
MINISTRY OF JUSTICE,LEGAL AID AGENCY,24/03/2016,Higher Crime,LEGAL AID FUND,SMITH & GRAHAM-ADVOCATE,933935:143571111,"29,937.00 ",Legal Aid Payment - Higher Crime
MINISTRY OF JUSTICE,LEGAL AID AGENCY,02/03/2016,Lower Crime,LEGAL AID FUND,BURTON COPELAND LLP,920567:143366634,"29,928.00 ",Legal Aid Payment - Lower Crime
MINISTRY OF JUSTICE,LEGAL AID AGENCY,09/03/2016,Civil Representation,LEGAL AID FUND,AMANDA L CRANNY,925055:143418939,"29,927.98 ",Legal Aid Payment - Civil Representation
MINISTRY OF JUSTICE,LEGAL AID AGENCY,24/03/2016,Higher Crime,LEGAL AID FUND,TYRONE G SMITH,934054:143547632,"29,894.24 ",Legal Aid Payment - Higher Crime
MINISTRY OF JUSTICE,LEGAL AID AGENCY,09/03/2016,Higher Crime,LEGAL AID FUND,MANDER HADLEY LTD,925738:143427503,"29,892.95 ",Legal Aid Payment - Higher Crime
MINISTRY OF JUSTICE,LEGAL AID AGENCY,09/03/2016,Higher Crime,LEGAL AID FUND,PETER S L JOYCE QC,925958:143449143,"29,886.06 ",Legal Aid Payment - Higher Crime
MINISTRY OF JUSTICE,LEGAL AID AGENCY,02/03/2016,Lower Crime,LEGAL AID FUND,STEPHENSONS SOLICITORS LLP,923044:143366327,"29,886.00 ",Legal Aid Payment - Lower Crime
MINISTRY OF JUSTICE,LEGAL AID AGENCY,02/03/2016,Legal Help,LEGAL AID FUND,BARNES HARRILD & DYER,922084:143364867,"29,845.00 ",Legal Aid Payment - Legal Help
MINISTRY OF JUSTICE,LEGAL AID AGENCY,17/03/2016,Civil Representation,LEGAL AID FUND,ELAINE PARKES SOLICITORS,933476:143525298,"-29,822.23 ",Legal Aid Payment - Civil Representation
MINISTRY OF JUSTICE,LEGAL AID AGENCY,17/03/2016,Higher Crime,LEGAL AID FUND,EVANS BISSETT SOLICITORS,933503:143520020,"29,817.64 ",Legal Aid Payment - Higher Crime
MINISTRY OF JUSTICE,LEGAL AID AGENCY,02/03/2016,Lower Crime,LEGAL AID FUND,KIRWANS,920473:143367349,"29,801.00 ",Legal Aid Payment - Lower Crime
MINISTRY OF JUSTICE,LEGAL AID AGENCY,02/03/2016,Legal Help,LEGAL AID FUND,WATKINS SOLICITORS,924286:143365527,"29,773.00 ",Legal Aid Payment - Legal Help
MINISTRY OF JUSTICE,LEGAL AID AGENCY,02/03/2016,Lower Crime,LEGAL AID FUND,MORGAN CULLEN & BALL LTD,919795:143367447,"29,718.00 ",Legal Aid Payment - Lower Crime
MINISTRY OF JUSTICE,LEGAL AID AGENCY,02/03/2016,Lower Crime,LEGAL AID FUND,GWB HARTHILLS LLP,922968:143366807,"29,697.00 ",Legal Aid Payment - Lower Crime
MINISTRY OF JUSTICE,LEGAL AID AGENCY,09/03/2016,Higher Crime,LEGAL AID FUND,DPP LAW LTD,925231:143388083,"29,669.94 ",Legal Aid Payment - Higher Crime
MINISTRY OF JUSTICE,LEGAL AID AGENCY,02/03/2016,Higher Crime,LEGAL AID FUND,HEALEY COLBON,923438:143369874,"29,664.55 ",Legal Aid Payment - Higher Crime
MINISTRY OF JUSTICE,LEGAL AID AGENCY,09/03/2016,Higher Crime,LEGAL AID FUND,KRISTINA HARRISON SOLICITORS,926133:143401526,"29,664.55 ",Legal Aid Payment - Higher Crime
MINISTRY OF JUSTICE,LEGAL AID AGENCY,17/03/2016,Higher Crime,LEGAL AID FUND,HODGE JONES & ALLEN LLP,932444:143518989,"29,664.55 ",Legal Aid Payment - Higher Crime
MINISTRY OF JUSTICE,LEGAL AID AGENCY,17/03/2016,Higher Crime,LEGAL AID FUND,CHIVERS SOLICITORS,932966:143519813,"29,664.55 ",Legal Aid Payment - Higher Crime
MINISTRY OF JUSTICE,LEGAL AID AGENCY,17/03/2016,Civil Representation,LEGAL AID FUND,SYMES BAINS BROOMER,930657:143492710,"29,637.06 ",Legal Aid Payment - Civil Representation
MINISTRY OF JUSTICE,LEGAL AID AGENCY,24/03/2016,Civil Representation,LEGAL AID FUND,T V EDWARDS LLP,935233:143599414,"29,635.93 ",Legal Aid Payment - Civil Representation
MINISTRY OF JUSTICE,LEGAL AID AGENCY,02/03/2016,Lower Crime,LEGAL AID FUND,SEDGWICK CHUDLEIGH MCKENN SOLICITORS,924307:143366990,"29,631.00 ",Legal Aid Payment - Lower Crime
MINISTRY OF JUSTICE,LEGAL AID AGENCY,09/03/2016,Higher Crime,LEGAL AID FUND,WHITELOCK & STORR-ADVOCATE,925810:143401466,"29,562.17 ",Legal Aid Payment - Higher Crime
MINISTRY OF JUSTICE,LEGAL AID AGENCY,02/03/2016,Lower Crime,LEGAL AID FUND,EMMERSONS SOLICITORS,924749:143366476,"29,540.00 ",Legal Aid Payment - Lower Crime
MINISTRY OF JUSTICE,LEGAL AID AGENCY,17/03/2016,Legal Help,LEGAL AID FUND,STEPHENSONS SOLICITORS LLP,933563:143511664,"29,515.24 ",Legal Aid Payment - Legal Help
MINISTRY OF JUSTICE,LEGAL AID AGENCY,02/03/2016,Lower Crime,LEGAL AID FUND,BAILEY NICHOLSON GRAYSON,921550:143366771,"29,500.00 ",Legal Aid Payment - Lower Crime
MINISTRY OF JUSTICE,LEGAL AID AGENCY,02/03/2016,Lower Crime,LEGAL AID FUND,STEPHEN BURDON SOLICITORS,921973:143366776,"29,500.00 ",Legal Aid Payment - Lower Crime
MINISTRY OF JUSTICE,LEGAL AID AGENCY,02/03/2016,Lower Crime,LEGAL AID FUND,WATSON WOODHOUSE SOLICITORS LLP,923548:143366388,"29,500.00 ",Legal Aid Payment - Lower Crime
MINISTRY OF JUSTICE,LEGAL AID AGENCY,24/03/2016,Higher Crime,LEGAL AID FUND,PHILIP W D  ALLMAN,933828:143571049,"29,340.31 ",Legal Aid Payment - Higher Crime
MINISTRY OF JUSTICE,LEGAL AID AGENCY,02/03/2016,Lower Crime,LEGAL AID FUND,OSLERS SOLICITORS,920023:143367190,"29,300.00 ",Legal Aid Payment - Lower Crime
MINISTRY OF JUSTICE,LEGAL AID AGENCY,02/03/2016,Lower Crime,LEGAL AID FUND,HASKELL & CO,924304:143366992,"29,286.00 ",Legal Aid Payment - Lower Crime
MINISTRY OF JUSTICE,LEGAL AID AGENCY,17/03/2016,Higher Crime,LEGAL AID FUND,ABBEY SOLICITORS,929425:143518974,"29,237.76 ",Legal Aid Payment - Higher Crime
MINISTRY OF JUSTICE,LEGAL AID AGENCY,02/03/2016,Lower Crime,LEGAL AID FUND,VHS FLETCHERS,923633:143367516,"29,200.00 ",Legal Aid Payment - Lower Crime
MINISTRY OF JUSTICE,LEGAL AID AGENCY,02/03/2016,Higher Crime,LEGAL AID FUND,STEVEN M DONOGHUE,920384:143331978,"29,144.54 ",Legal Aid Payment - Higher Crime
MINISTRY OF JUSTICE,LEGAL AID AGENCY,09/03/2016,Civil Representation,LEGAL AID FUND,PRITCHARD JOYCE & HINDS,925269:143455536,"29,102.39 ",Legal Aid Payment - Civil Representation
MINISTRY OF JUSTICE,LEGAL AID AGENCY,09/03/2016,Lower Crime,LEGAL AID FUND,SWITALSKI'S SOLICITORS LTD,926362:143406506,"29,048.93 ",Legal Aid Payment - Lower Crime
MINISTRY OF JUSTICE,LEGAL AID AGENCY,24/03/2016,Civil Representation,LEGAL AID FUND,CHRISTOPHER R POOLE,936416:143490252,"-29,014.20 ",Legal Aid Payment - Civil Representation
MINISTRY OF JUSTICE,LEGAL AID AGENCY,24/03/2016,Civil Representation,LEGAL AID FUND,DAVIS & SIMMONDS & DONAGHEY,935587:143588012,"29,002.24 ",Legal Aid Payment - Civil Representation
MINISTRY OF JUSTICE,LEGAL AID AGENCY,17/03/2016,Higher Crime,LEGAL AID FUND,TUCKERS SOLICITORS LLP,929496:143519884,"29,002.13 ",Legal Aid Payment - Higher Crime
MINISTRY OF JUSTICE,LEGAL AID AGENCY,17/03/2016,Higher Crime,LEGAL AID FUND,FARLEYS SOLICITORS LLP,929548:143475418,"29,002.12 ",Legal Aid Payment - Higher Crime
MINISTRY OF JUSTICE,LEGAL AID AGENCY,17/03/2016,Higher Crime,LEGAL AID FUND,LUMB & MACGILL,933538:143535026,"29,002.12 ",Legal Aid Payment - Higher Crime
MINISTRY OF JUSTICE,LEGAL AID AGENCY,02/03/2016,Lower Crime,LEGAL AID FUND,G T STEWART SOLICITORS,920036:143367300,"29,001.00 ",Legal Aid Payment - Lower Crime
MINISTRY OF JUSTICE,LEGAL AID AGENCY,02/03/2016,Lower Crime,LEGAL AID FUND,THE CASTLE PARTNERSHIP,920543:143366867,"29,000.00 ",Legal Aid Payment - Lower Crime
MINISTRY OF JUSTICE,LEGAL AID AGENCY,02/03/2016,Legal Help,LEGAL AID FUND,MTG SOLICITORS,922912:143365532,"29,000.00 ",Legal Aid Payment - Legal Help
MINISTRY OF JUSTICE,LEGAL AID AGENCY,02/03/2016,Lower Crime,LEGAL AID FUND,OBW PERERA LTD,923365:143367019,"29,000.00 ",Legal Aid Payment - Lower Crime
MINISTRY OF JUSTICE,LEGAL AID AGENCY,02/03/2016,Lower Crime,LEGAL AID FUND,MONICA LENTIN & CO,923826:143366598,"28,979.00 ",Legal Aid Payment - Lower Crime
MINISTRY OF JUSTICE,LEGAL AID AGENCY,17/03/2016,Civil Representation,LEGAL AID FUND,SHOOSMITHS,930639:141933519,"-28,954.24 ",Legal Aid Payment - Civil Representation
MINISTRY OF JUSTICE,LEGAL AID AGENCY,02/03/2016,Lower Crime,LEGAL AID FUND,MURRAYS PARTNERSHIP,923481:143366347,"28,953.00 ",Legal Aid Payment - Lower Crime
MINISTRY OF JUSTICE,LEGAL AID AGENCY,17/03/2016,Higher Crime,LEGAL AID FUND,KENYON MCATEER SOLICITORS,931113:143461463,"28,932.85 ",Legal Aid Payment - Higher Crime
MINISTRY OF JUSTICE,LEGAL AID AGENCY,09/03/2016,Higher Crime,LEGAL AID FUND,STEPHEN BURDON SOLICITORS,928794:143426404,"28,914.49 ",Legal Aid Payment - Higher Crime
MINISTRY OF JUSTICE,LEGAL AID AGENCY,02/03/2016,Lower Crime,LEGAL AID FUND,OLLIERS,921544:143366813,"28,899.00 ",Legal Aid Payment - Lower Crime
MINISTRY OF JUSTICE,LEGAL AID AGENCY,17/03/2016,Higher Crime,LEGAL AID FUND,COBLEYS LLP,932999:143533724,"28,888.94 ",Legal Aid Payment - Higher Crime
MINISTRY OF JUSTICE,LEGAL AID AGENCY,09/03/2016,Higher Crime,LEGAL AID FUND,JOSEPH P HEDWORTH,925526:143427813,"28,811.40 ",Legal Aid Payment - Higher Crime
MINISTRY OF JUSTICE,LEGAL AID AGENCY,02/03/2016,Lower Crime,LEGAL AID FUND,COOMBER RICH LTD,921035:143366820,"28,800.00 ",Legal Aid Payment - Lower Crime
MINISTRY OF JUSTICE,LEGAL AID AGENCY,02/03/2016,Legal Help,LEGAL AID FUND,BRAR & CO SOLICITORS & ESTATE AGENTS,923527:143365030,"28,800.00 ",Legal Aid Payment - Legal Help
MINISTRY OF JUSTICE,LEGAL AID AGENCY,09/03/2016,Civil Representation,LEGAL AID FUND,IAN SHIELS,928265:134853803,"28,776.00 ",Legal Aid Payment - Civil Representation
MINISTRY OF JUSTICE,LEGAL AID AGENCY,02/03/2016,Lower Crime,LEGAL AID FUND,EDWARD FAIL BRADSHAW & WATERSON,920188:143365990,"28,774.00 ",Legal Aid Payment - Lower Crime
MINISTRY OF JUSTICE,LEGAL AID AGENCY,02/03/2016,Lower Crime,LEGAL AID FUND,TAYLOR HALDANE BARLEX LLP,921535:143367001,"28,766.00 ",Legal Aid Payment - Lower Crime
MINISTRY OF JUSTICE,LEGAL AID AGENCY,02/03/2016,Higher Crime,LEGAL AID FUND,EBR ATTRIDGE LLP,923898:143345085,"28,756.45 ",Legal Aid Payment - Higher Crime
MINISTRY OF JUSTICE,LEGAL AID AGENCY,02/03/2016,Lower Crime,LEGAL AID FUND,SMITH PARTNERSHIP,922962:143366504,"28,700.00 ",Legal Aid Payment - Lower Crime
MINISTRY OF JUSTICE,LEGAL AID AGENCY,02/03/2016,Lower Crime,LEGAL AID FUND,HAY & KILNER,924363:143366404,"28,688.00 ",Legal Aid Payment - Lower Crime
MINISTRY OF JUSTICE,LEGAL AID AGENCY,17/03/2016,Higher Crime,LEGAL AID FUND,BARK & CO,929506:143474499,"28,680.29 ",Legal Aid Payment - Higher Crime
MINISTRY OF JUSTICE,LEGAL AID AGENCY,02/03/2016,Lower Crime,LEGAL AID FUND,"MOSS & CO, SOLICITORS",920198:143366005,"28,625.00 ",Legal Aid Payment - Lower Crime
MINISTRY OF JUSTICE,LEGAL AID AGENCY,02/03/2016,Lower Crime,LEGAL AID FUND,B H MOHAMMED,921641:143366201,"28,600.00 ",Legal Aid Payment - Lower Crime
MINISTRY OF JUSTICE,LEGAL AID AGENCY,02/03/2016,Lower Crime,LEGAL AID FUND,WALKER LAHIVE,924809:143366493,"28,580.00 ",Legal Aid Payment - Lower Crime
MINISTRY OF JUSTICE,LEGAL AID AGENCY,17/03/2016,Higher Crime,LEGAL AID FUND,TILLY BAILEY & IRVINE LLP,930065:143499842,"28,562.13 ",Legal Aid Payment - Higher Crime
MINISTRY OF JUSTICE,LEGAL AID AGENCY,02/03/2016,Legal Help,LEGAL AID FUND,EDWARDS DUTHIE,920690:143364690,"28,519.00 ",Legal Aid Payment - Legal Help
MINISTRY OF JUSTICE,LEGAL AID AGENCY,02/03/2016,Lower Crime,LEGAL AID FUND,EDWARDS DUTHIE,920690:143365986,"28,471.00 ",Legal Aid Payment - Lower Crime
MINISTRY OF JUSTICE,LEGAL AID AGENCY,02/03/2016,Lower Crime,LEGAL AID FUND,FORBES SOLICITORS,921509:143366694,"28,400.00 ",Legal Aid Payment - Lower Crime
MINISTRY OF JUSTICE,LEGAL AID AGENCY,24/03/2016,Civil Representation,LEGAL AID FUND,JUDITH M PARR,937021:143525267,"28,381.36 ",Legal Aid Payment - Civil Representation
MINISTRY OF JUSTICE,LEGAL AID AGENCY,02/03/2016,Lower Crime,LEGAL AID FUND,"SWINBURNE,SNOWBALL & JACKSON",923536:143366377,"28,358.00 ",Legal Aid Payment - Lower Crime
MINISTRY OF JUSTICE,LEGAL AID AGENCY,17/03/2016,Civil Representation,LEGAL AID FUND,DYMPNA HOWELLS,932861:143480221,"28,317.60 ",Legal Aid Payment - Civil Representation
MINISTRY OF JUSTICE,LEGAL AID AGENCY,02/03/2016,Higher Crime,LEGAL AID FUND,MCCORMICKS,921097:143345196,"28,301.76 ",Legal Aid Payment - Higher Crime
MINISTRY OF JUSTICE,LEGAL AID AGENCY,02/03/2016,Lower Crime,LEGAL AID FUND,WATSON WOODHOUSE SOLICITORS LLP,923546:143367099,"28,300.00 ",Legal Aid Payment - Lower Crime
MINISTRY OF JUSTICE,LEGAL AID AGENCY,24/03/2016,Higher Crime,LEGAL AID FUND,HENRY MILNER & CO,937860:143547596,"28,237.43 ",Legal Aid Payment - Higher Crime
MINISTRY OF JUSTICE,LEGAL AID AGENCY,02/03/2016,Lower Crime,LEGAL AID FUND,RICHARD HASWELL SOLICITORS LLP,923462:143366356,"28,064.00 ",Legal Aid Payment - Lower Crime
MINISTRY OF JUSTICE,LEGAL AID AGENCY,24/03/2016,Higher Crime,LEGAL AID FUND,THE JOHNSON PARTNERSHIP,936640:143594141,"28,017.50 ",Legal Aid Payment - Higher Crime
MINISTRY OF JUSTICE,LEGAL AID AGENCY,24/03/2016,Civil Representation,LEGAL AID FUND,LICHFIELD REYNOLDS LLP,934208:143564004,"28,007.01 ",Legal Aid Payment - Civil Representation
MINISTRY OF JUSTICE,LEGAL AID AGENCY,02/03/2016,Lower Crime,LEGAL AID FUND,O'GARRA'S SOLICITORS,921540:143366817,"28,000.00 ",Legal Aid Payment - Lower Crime
MINISTRY OF JUSTICE,LEGAL AID AGENCY,02/03/2016,Lower Crime,LEGAL AID FUND,ASHLEY SMITH & CO,921962:143366701,"28,000.00 ",Legal Aid Payment - Lower Crime
MINISTRY OF JUSTICE,LEGAL AID AGENCY,02/03/2016,Higher Crime,LEGAL AID FUND,JONATHAN A DEE,923798:143345315,"27,947.71 ",Legal Aid Payment - Higher Crime
MINISTRY OF JUSTICE,LEGAL AID AGENCY,02/03/2016,Higher Crime,LEGAL AID FUND,JAMES BENSON & CO,922021:143345805,"27,917.18 ",Legal Aid Payment - Higher Crime
MINISTRY OF JUSTICE,LEGAL AID AGENCY,02/03/2016,Lower Crime,LEGAL AID FUND,PHILIP HANBY LTD T/A ANDREW JAY & CO,920080:143366973,"27,911.00 ",Legal Aid Payment - Lower Crime
MINISTRY OF JUSTICE,LEGAL AID AGENCY,17/03/2016,Civil Representation,LEGAL AID FUND,CATHERINE P JENKINS,931652:143420922,"-27,902.40 ",Legal Aid Payment - Civil Representation
MINISTRY OF JUSTICE,LEGAL AID AGENCY,17/03/2016,Civil Representation,LEGAL AID FUND,CATHERINE P JENKINS,931652:143420909,"27,901.92 ",Legal Aid Payment - Civil Representation
MINISTRY OF JUSTICE,LEGAL AID AGENCY,02/03/2016,Higher Crime,LEGAL AID FUND,IRVINE THANVI NATAS SOLICITORS-ADV.,919796:143332530,"27,889.37 ",Legal Aid Payment - Higher Crime
MINISTRY OF JUSTICE,LEGAL AID AGENCY,02/03/2016,Lower Crime,LEGAL AID FUND,FDR LAW,923505:143366318,"27,854.00 ",Legal Aid Payment - Lower Crime
MINISTRY OF JUSTICE,LEGAL AID AGENCY,17/03/2016,Higher Crime,LEGAL AID FUND,COLIN J WELLS,933455:143487209,"27,850.44 ",Legal Aid Payment - Higher Crime
MINISTRY OF JUSTICE,LEGAL AID AGENCY,02/03/2016,Lower Crime,LEGAL AID FUND,CJCH SOLICITORS,921590:143366124,"27,821.00 ",Legal Aid Payment - Lower Crime
MINISTRY OF JUSTICE,LEGAL AID AGENCY,02/03/2016,Higher Crime,LEGAL AID FUND,BLACKFORDS LLP,920632:143369843,"27,786.35 ",Legal Aid Payment - Higher Crime
MINISTRY OF JUSTICE,LEGAL AID AGENCY,17/03/2016,Civil Representation,LEGAL AID FUND,THE FIRM LLP,929438:143493249,"27,747.73 ",Legal Aid Payment - Civil Representation
MINISTRY OF JUSTICE,LEGAL AID AGENCY,02/03/2016,Lower Crime,LEGAL AID FUND,WOODS SOLICITORS,923864:143367092,"27,741.00 ",Legal Aid Payment - Lower Crime
MINISTRY OF JUSTICE,LEGAL AID AGENCY,02/03/2016,Lower Crime,LEGAL AID FUND,HORSMAN SOLICITORS LTD,923508:143366316,"27,727.00 ",Legal Aid Payment - Lower Crime
MINISTRY OF JUSTICE,LEGAL AID AGENCY,09/03/2016,Higher Crime,LEGAL AID FUND,ZAFAR ALI,925518:143387578,"27,724.74 ",Legal Aid Payment - Higher Crime
MINISTRY OF JUSTICE,LEGAL AID AGENCY,09/03/2016,Higher Crime,LEGAL AID FUND,JANE C HUMPHRYES QC,927873:143449586,"27,724.74 ",Legal Aid Payment - Higher Crime
MINISTRY OF JUSTICE,LEGAL AID AGENCY,02/03/2016,Lower Crime,LEGAL AID FUND,RICHARDSON SOLICITORS,921087:143366898,"27,700.00 ",Legal Aid Payment - Lower Crime
MINISTRY OF JUSTICE,LEGAL AID AGENCY,02/03/2016,Lower Crime,LEGAL AID FUND,ACHOM & PARTNERS,920520:143367334,"27,678.00 ",Legal Aid Payment - Lower Crime
MINISTRY OF JUSTICE,LEGAL AID AGENCY,09/03/2016,Higher Crime,LEGAL AID FUND,AARON WATKINS,928630:143426986,"27,666.50 ",Legal Aid Payment - Higher Crime
MINISTRY OF JUSTICE,LEGAL AID AGENCY,02/03/2016,Higher Crime,LEGAL AID FUND,M K LAW SOLICITORS LTD-ADVOCATE,924469:143333293,"27,651.60 ",Legal Aid Payment - Higher Crime
MINISTRY OF JUSTICE,LEGAL AID AGENCY,17/03/2016,Higher Crime,LEGAL AID FUND,AHMED NADIM,930921:143533629,"27,613.63 ",Legal Aid Payment - Higher Crime
MINISTRY OF JUSTICE,LEGAL AID AGENCY,02/03/2016,Lower Crime,LEGAL AID FUND,MANN & CO SOLICITORS,921982:143366889,"27,600.00 ",Legal Aid Payment - Lower Crime
MINISTRY OF JUSTICE,LEGAL AID AGENCY,02/03/2016,Lower Crime,LEGAL AID FUND,DARRYL INGRAM & CO,923408:143366728,"27,600.00 ",Legal Aid Payment - Lower Crime
MINISTRY OF JUSTICE,LEGAL AID AGENCY,24/03/2016,Higher Crime,LEGAL AID FUND,MICHAEL MAGARIAN QC,934485:143593321,"27,544.64 ",Legal Aid Payment - Higher Crime
MINISTRY OF JUSTICE,LEGAL AID AGENCY,02/03/2016,Lower Crime,LEGAL AID FUND,SHARMA LAW SOLICITORS,920980:143367379,"27,524.00 ",Legal Aid Payment - Lower Crime
MINISTRY OF JUSTICE,LEGAL AID AGENCY,02/03/2016,Higher Crime,LEGAL AID FUND,ANNE F L FAUL,921875:143345049,"-27,503.52 ",Legal Aid Payment - Higher Crime
MINISTRY OF JUSTICE,LEGAL AID AGENCY,02/03/2016,Lower Crime,LEGAL AID FUND,SHEPHERD SOLICITORS LTD,924691:143367229,"27,497.00 ",Legal Aid Payment - Lower Crime
MINISTRY OF JUSTICE,LEGAL AID AGENCY,09/03/2016,Civil Representation,LEGAL AID FUND,S A CARR & CO,926530:143420750,"27,486.47 ",Legal Aid Payment - Civil Representation
MINISTRY OF JUSTICE,LEGAL AID AGENCY,02/03/2016,Legal Help,LEGAL AID FUND,DONOVAN NEWTON SOLICITORS,924283:143365530,"27,442.00 ",Legal Aid Payment - Legal Help
MINISTRY OF JUSTICE,LEGAL AID AGENCY,17/03/2016,Civil Representation,LEGAL AID FUND,ANDREW M NEAVES,933321:143478638,"27,345.60 ",Legal Aid Payment - Civil Representation
MINISTRY OF JUSTICE,LEGAL AID AGENCY,09/03/2016,Civil Representation,LEGAL AID FUND,CLIFFORD JOHNSTON & CO,927960:143396046,"27,336.78 ",Legal Aid Payment - Civil Representation
MINISTRY OF JUSTICE,LEGAL AID AGENCY,09/03/2016,Higher Crime,LEGAL AID FUND,HENNESSY & HAMMUDI,926408:143455463,"27,316.80 ",Legal Aid Payment - Higher Crime
MINISTRY OF JUSTICE,LEGAL AID AGENCY,02/03/2016,Legal Help,LEGAL AID FUND,THOMPSON & CO,923072:143364994,"27,300.00 ",Legal Aid Payment - Legal Help
MINISTRY OF JUSTICE,LEGAL AID AGENCY,02/03/2016,Lower Crime,LEGAL AID FUND,HEALEY COLBON,924692:143367228,"27,300.00 ",Legal Aid Payment - Lower Crime
MINISTRY OF JUSTICE,LEGAL AID AGENCY,09/03/2016,Higher Crime,LEGAL AID FUND,ROBIN B FRIEZE,927719:143388208,"27,299.98 ",Legal Aid Payment - Higher Crime
MINISTRY OF JUSTICE,LEGAL AID AGENCY,02/03/2016,Legal Help,LEGAL AID FUND,WOLTON & CO,923395:143365461,"27,246.00 ",Legal Aid Payment - Legal Help
MINISTRY OF JUSTICE,LEGAL AID AGENCY,02/03/2016,Higher Crime,LEGAL AID FUND,HOGAN BROWN SOLICITORS,923433:143368175,"27,205.67 ",Legal Aid Payment - Higher Crime
MINISTRY OF JUSTICE,LEGAL AID AGENCY,02/03/2016,Higher Crime,LEGAL AID FUND,MARK HEYWOOD QC,920350:143344740,"27,194.58 ",Legal Aid Payment - Higher Crime
MINISTRY OF JUSTICE,LEGAL AID AGENCY,02/03/2016,Lower Crime,LEGAL AID FUND,JOHN FULLER & PARTNERS,924709:143367175,"27,183.00 ",Legal Aid Payment - Lower Crime
MINISTRY OF JUSTICE,LEGAL AID AGENCY,02/03/2016,Civil Representation,LEGAL AID FUND,PRICE MISTRY LTD,923851:143336974,"27,181.40 ",Legal Aid Payment - Civil Representation
MINISTRY OF JUSTICE,LEGAL AID AGENCY,02/03/2016,Legal Help,LEGAL AID FUND,WILSON SOLICITORS LLP,922638:143365915,"27,133.00 ",Legal Aid Payment - Legal Help
MINISTRY OF JUSTICE,LEGAL AID AGENCY,02/03/2016,Higher Crime,LEGAL AID FUND,GALBRAITH BRANLEY SOLICITORS,921011:143368287,"27,116.59 ",Legal Aid Payment - Higher Crime
MINISTRY OF JUSTICE,LEGAL AID AGENCY,24/03/2016,Higher Crime,LEGAL AID FUND,YASIN A PATEL,937667:143547433,"27,113.60 ",Legal Aid Payment - Higher Crime
MINISTRY OF JUSTICE,LEGAL AID AGENCY,09/03/2016,Higher Crime,LEGAL AID FUND,MORGAN CULLEN & BALL LTD,926541:143387326,"27,093.90 ",Legal Aid Payment - Higher Crime
MINISTRY OF JUSTICE,LEGAL AID AGENCY,02/03/2016,Higher Crime,LEGAL AID FUND,OPUS LAW,924282:143381322,"27,040.96 ",Legal Aid Payment - Higher Crime
MINISTRY OF JUSTICE,LEGAL AID AGENCY,02/03/2016,Lower Crime,LEGAL AID FUND,RICHARD BODY & CO,922040:143366836,"27,000.00 ",Legal Aid Payment - Lower Crime
MINISTRY OF JUSTICE,LEGAL AID AGENCY,02/03/2016,Lower Crime,LEGAL AID FUND,SMITH PARTNERSHIP,922958:143366603,"27,000.00 ",Legal Aid Payment - Lower Crime
MINISTRY OF JUSTICE,LEGAL AID AGENCY,02/03/2016,Lower Crime,LEGAL AID FUND,DAVID GRAY LLP,922980:143366720,"27,000.00 ",Legal Aid Payment - Lower Crime
MINISTRY OF JUSTICE,LEGAL AID AGENCY,02/03/2016,Lower Crime,LEGAL AID FUND,ALEXANDER BENNETT,923112:143367489,"27,000.00 ",Legal Aid Payment - Lower Crime
MINISTRY OF JUSTICE,LEGAL AID AGENCY,02/03/2016,Lower Crime,LEGAL AID FUND,BARRETT & NELLIGAN SOLICITORS LTD,923488:143366754,"27,000.00 ",Legal Aid Payment - Lower Crime
MINISTRY OF JUSTICE,LEGAL AID AGENCY,24/03/2016,Higher Crime,LEGAL AID FUND,J D SPICER ZEB,937863:143570881,"26,997.48 ",Legal Aid Payment - Higher Crime
MINISTRY OF JUSTICE,LEGAL AID AGENCY,02/03/2016,Lower Crime,LEGAL AID FUND,M B LAW LTD,924274:143367138,"26,976.00 ",Legal Aid Payment - Lower Crime
MINISTRY OF JUSTICE,LEGAL AID AGENCY,09/03/2016,Higher Crime,LEGAL AID FUND,FOXES SOLICITORS,926721:143427209,"26,974.55 ",Legal Aid Payment - Higher Crime
MINISTRY OF JUSTICE,LEGAL AID AGENCY,24/03/2016,Higher Crime,LEGAL AID FUND,O'KEEFFE SOLICITORS,936722:143547566,"26,902.12 ",Legal Aid Payment - Higher Crime
MINISTRY OF JUSTICE,LEGAL AID AGENCY,02/03/2016,Lower Crime,LEGAL AID FUND,NELSON GUEST & PARTNERS,920233:143365998,"26,900.00 ",Legal Aid Payment - Lower Crime
MINISTRY OF JUSTICE,LEGAL AID AGENCY,02/03/2016,Lower Crime,LEGAL AID FUND,TUCKERS SOLICITORS LLP,923501:143366863,"26,900.00 ",Legal Aid Payment - Lower Crime
MINISTRY OF JUSTICE,LEGAL AID AGENCY,02/03/2016,Lower Crime,LEGAL AID FUND,CLARKE KIERNAN LLP,922014:143366786,"26,892.00 ",Legal Aid Payment - Lower Crime
MINISTRY OF JUSTICE,LEGAL AID AGENCY,24/03/2016,Higher Crime,LEGAL AID FUND,FARNSWORTH MORGAN BAKHAT,935647:143559468,"26,868.61 ",Legal Aid Payment - Higher Crime
MINISTRY OF JUSTICE,LEGAL AID AGENCY,09/03/2016,Higher Crime,LEGAL AID FUND,YASMIN & SHAID SOLICITORS LTD,926017:143387747,"26,820.01 ",Legal Aid Payment - Higher Crime
MINISTRY OF JUSTICE,LEGAL AID AGENCY,02/03/2016,Lower Crime,LEGAL AID FUND,FORBES SOLICITORS,921063:143366651,"26,800.00 ",Legal Aid Payment - Lower Crime
MINISTRY OF JUSTICE,LEGAL AID AGENCY,02/03/2016,Legal Help,LEGAL AID FUND,VIRGO SOLICITORS LTD,921710:143365822,"26,761.00 ",Legal Aid Payment - Legal Help
MINISTRY OF JUSTICE,LEGAL AID AGENCY,02/03/2016,Lower Crime,LEGAL AID FUND,TRANTERS CRIMINAL LAW PRACTICE,921033:143366643,"26,700.00 ",Legal Aid Payment - Lower Crime
MINISTRY OF JUSTICE,LEGAL AID AGENCY,02/03/2016,Lower Crime,LEGAL AID FUND,HUNT & COOMBS LLP,924783:143366562,"26,700.00 ",Legal Aid Payment - Lower Crime
MINISTRY OF JUSTICE,LEGAL AID AGENCY,02/03/2016,Lower Crime,LEGAL AID FUND,YARWOOD & STUBLEY,923545:143339364,"-26,700.00 ",Legal Aid Payment - Lower Crime
MINISTRY OF JUSTICE,LEGAL AID AGENCY,09/03/2016,Higher Crime,LEGAL AID FUND,PAUL MARTIN & CO,925214:143449297,"26,698.10 ",Legal Aid Payment - Higher Crime
MINISTRY OF JUSTICE,LEGAL AID AGENCY,02/03/2016,Lower Crime,LEGAL AID FUND,DJMS SOLICITORS LTD,920329:143380209,"26,697.00 ",Legal Aid Payment - Lower Crime
MINISTRY OF JUSTICE,LEGAL AID AGENCY,02/03/2016,Lower Crime,LEGAL AID FUND,BOOTS STARKE GOACHER SOLICITORS,921477:143366904,"26,687.00 ",Legal Aid Payment - Lower Crime
MINISTRY OF JUSTICE,LEGAL AID AGENCY,17/03/2016,Higher Crime,LEGAL AID FUND,TILLY BAILEY & IRVINE LLP,930065:143499394,"26,685.19 ",Legal Aid Payment - Higher Crime
MINISTRY OF JUSTICE,LEGAL AID AGENCY,17/03/2016,Higher Crime,LEGAL AID FUND,QUINN MELVILLE,932998:143475636,"26,624.08 ",Legal Aid Payment - Higher Crime
MINISTRY OF JUSTICE,LEGAL AID AGENCY,24/03/2016,Higher Crime,LEGAL AID FUND,KHAN SOLICITORS LTD,936153:143560095,"26,624.08 ",Legal Aid Payment - Higher Crime
MINISTRY OF JUSTICE,LEGAL AID AGENCY,02/03/2016,Legal Help,LEGAL AID FUND,TRP SOLICITORS LTD,924305:143365525,"26,600.00 ",Legal Aid Payment - Legal Help
MINISTRY OF JUSTICE,LEGAL AID AGENCY,09/03/2016,Civil Representation,LEGAL AID FUND,CHRISTOPHER P BRAMWELL,927507:3000000738360027,"26,529.98 ",Legal Aid Payment - Civil Representation
MINISTRY OF JUSTICE,LEGAL AID AGENCY,02/03/2016,Lower Crime,LEGAL AID FUND,GURNEY HARDEN SOLICITORS,920016:143367197,"26,524.00 ",Legal Aid Payment - Lower Crime
MINISTRY OF JUSTICE,LEGAL AID AGENCY,24/03/2016,Civil Representation,LEGAL AID FUND,SWITALSKI'S SOLICITORS LTD,936086:143599377,"26,491.01 ",Legal Aid Payment - Civil Representation
MINISTRY OF JUSTICE,LEGAL AID AGENCY,17/03/2016,Higher Crime,LEGAL AID FUND,ZOE GIBBON,930386:143520194,"26,446.80 ",Legal Aid Payment - Higher Crime
MINISTRY OF JUSTICE,LEGAL AID AGENCY,02/03/2016,Lower Crime,LEGAL AID FUND,WALTERS & PLASKITT-INC LESLIE DODD & CO,922035:143366691,"26,400.00 ",Legal Aid Payment - Lower Crime
MINISTRY OF JUSTICE,LEGAL AID AGENCY,09/03/2016,Civil Representation,LEGAL AID FUND,STEPHENSONS SOLICITORS LLP,926523:143444079,"26,385.87 ",Legal Aid Payment - Civil Representation
MINISTRY OF JUSTICE,LEGAL AID AGENCY,09/03/2016,Civil Representation,LEGAL AID FUND,GOODMAN RAY,925605:143406277,"26,384.01 ",Legal Aid Payment - Civil Representation
MINISTRY OF JUSTICE,LEGAL AID AGENCY,02/03/2016,Lower Crime,LEGAL AID FUND,NEEDHAM POULIER LTD,922016:143366793,"26,380.00 ",Legal Aid Payment - Lower Crime
MINISTRY OF JUSTICE,LEGAL AID AGENCY,24/03/2016,Civil Representation,LEGAL AID FUND,ANNE-MARIE GLOVER,935938:143586280,"-26,368.80 ",Legal Aid Payment - Civil Representation
MINISTRY OF JUSTICE,LEGAL AID AGENCY,24/03/2016,Legal Help,LEGAL AID FUND,ANTHONY D E METZER QC,935956:143551367,"26,364.00 ",Legal Aid Payment - Legal Help
MINISTRY OF JUSTICE,LEGAL AID AGENCY,24/03/2016,Civil Representation,LEGAL AID FUND,DUNCAN LEWIS,933698:300000048018RC175,"26,349.59 ",Legal Aid Payment - Civil Representation
MINISTRY OF JUSTICE,LEGAL AID AGENCY,09/03/2016,Higher Crime,LEGAL AID FUND,PATTICHI HILL & CROQUES LTD,928808:143388079,"26,349.10 ",Legal Aid Payment - Higher Crime
MINISTRY OF JUSTICE,LEGAL AID AGENCY,24/03/2016,Higher Crime,LEGAL AID FUND,BUNTY L BATRA,934111:143593350,"26,295.55 ",Legal Aid Payment - Higher Crime
MINISTRY OF JUSTICE,LEGAL AID AGENCY,09/03/2016,Legal Help,LEGAL AID FUND,MIGRANT LEGAL PROJECT,928510:143457004,"26,234.00 ",Legal Aid Payment - Legal Help
MINISTRY OF JUSTICE,LEGAL AID AGENCY,24/03/2016,Civil Representation,LEGAL AID FUND,ATKINS HOPE SOLICITORS LIMITED,936745:143587353,"26,229.31 ",Legal Aid Payment - Civil Representation
MINISTRY OF JUSTICE,LEGAL AID AGENCY,24/03/2016,Higher Crime,LEGAL AID FUND,TUCKERS SOLICITORS LLP,935210:143560097,"26,151.06 ",Legal Aid Payment - Higher Crime
MINISTRY OF JUSTICE,LEGAL AID AGENCY,24/03/2016,Higher Crime,LEGAL AID FUND,DELANEY & CO SOLICITORS,936538:143547064,"26,151.06 ",Legal Aid Payment - Higher Crime
MINISTRY OF JUSTICE,LEGAL AID AGENCY,09/03/2016,Higher Crime,LEGAL AID FUND,BLACKFORDS LLP,928875:143426482,"26,119.22 ",Legal Aid Payment - Higher Crime
MINISTRY OF JUSTICE,LEGAL AID AGENCY,02/03/2016,Lower Crime,LEGAL AID FUND,HEALEY COLBON,923438:143367084,"26,100.00 ",Legal Aid Payment - Lower Crime
MINISTRY OF JUSTICE,LEGAL AID AGENCY,24/03/2016,Higher Crime,LEGAL AID FUND,MICHAEL J REED LTD,934322:143547268,"26,093.39 ",Legal Aid Payment - Higher Crime
MINISTRY OF JUSTICE,LEGAL AID AGENCY,02/03/2016,Lower Crime,LEGAL AID FUND,STEPHENSONS SOLICITORS LLP,923041:143366781,"26,088.00 ",Legal Aid Payment - Lower Crime
MINISTRY OF JUSTICE,LEGAL AID AGENCY,02/03/2016,Lower Crime,LEGAL AID FUND,CARTER OSBORNE LTD,920088:143367071,"26,039.00 ",Legal Aid Payment - Lower Crime
MINISTRY OF JUSTICE,LEGAL AID AGENCY,02/03/2016,Lower Crime,LEGAL AID FUND,NORTON PESKETT,920605:143366582,"26,032.00 ",Legal Aid Payment - Lower Crime
MINISTRY OF JUSTICE,LEGAL AID AGENCY,09/03/2016,Higher Crime,LEGAL AID FUND,TIMOTHY D ROBERTS,927324:143401514,"25,955.58 ",Legal Aid Payment - Higher Crime
MINISTRY OF JUSTICE,LEGAL AID AGENCY,02/03/2016,Legal Help,LEGAL AID FUND,WIMBLEDON SOLICITORS,920973:143365660,"25,950.00 ",Legal Aid Payment - Legal Help
MINISTRY OF JUSTICE,LEGAL AID AGENCY,24/03/2016,Higher Crime,LEGAL AID FUND,HENRY'S SOLICITORS LTD,934670:143594654,"25,944.89 ",Legal Aid Payment - Higher Crime
MINISTRY OF JUSTICE,LEGAL AID AGENCY,02/03/2016,Lower Crime,LEGAL AID FUND,HARRIS SOLICITORS,920498:143367278,"25,940.00 ",Legal Aid Payment - Lower Crime
MINISTRY OF JUSTICE,LEGAL AID AGENCY,17/03/2016,Civil Representation,LEGAL AID FUND,ATKINSON & FIRTH,933541:143524221,"-25,920.00 ",Legal Aid Payment - Civil Representation
MINISTRY OF JUSTICE,LEGAL AID AGENCY,02/03/2016,Higher Crime,LEGAL AID FUND,BARTHOLOMEW V O'TOOLE,920764:143332202,"25,914.00 ",Legal Aid Payment - Higher Crime
MINISTRY OF JUSTICE,LEGAL AID AGENCY,02/03/2016,Lower Crime,LEGAL AID FUND,NORRIE WAITE & SLATER,924739:143366473,"25,900.00 ",Legal Aid Payment - Lower Crime
MINISTRY OF JUSTICE,LEGAL AID AGENCY,24/03/2016,Higher Crime,LEGAL AID FUND,CAROLINE T GOODWIN,937114:143572372,"25,860.00 ",Legal Aid Payment - Higher Crime
MINISTRY OF JUSTICE,LEGAL AID AGENCY,17/03/2016,Civil Representation,LEGAL AID FUND,EMMA C V HUDSON,931655:143524182,"25,830.12 ",Legal Aid Payment - Civil Representation
MINISTRY OF JUSTICE,LEGAL AID AGENCY,02/03/2016,Higher Crime,LEGAL AID FUND,TAIT FARRIER GRAHAM,923946:143368270,"25,800.97 ",Legal Aid Payment - Higher Crime
MINISTRY OF JUSTICE,LEGAL AID AGENCY,24/03/2016,Higher Crime,LEGAL AID FUND,GRECH GOODEN SOLICITORS LTD,936049:143560157,"25,714.07 ",Legal Aid Payment - Higher Crime
MINISTRY OF JUSTICE,LEGAL AID AGENCY,02/03/2016,Lower Crime,LEGAL AID FUND,SAUNDERS SOLICITORS LTD,920215:143366023,"25,700.00 ",Legal Aid Payment - Lower Crime
MINISTRY OF JUSTICE,LEGAL AID AGENCY,02/03/2016,Civil Representation,LEGAL AID FUND,PAUL ROBINSON & CO,923833:143236012,"25,697.98 ",Legal Aid Payment - Civil Representation
MINISTRY OF JUSTICE,LEGAL AID AGENCY,02/03/2016,Lower Crime,LEGAL AID FUND,FISHER COWE,920032:143367181,"25,679.00 ",Legal Aid Payment - Lower Crime
MINISTRY OF JUSTICE,LEGAL AID AGENCY,09/03/2016,Civil Representation,LEGAL AID FUND,ROSALYN F CARTER,926661:3000000660500023,"25,617.60 ",Legal Aid Payment - Civil Representation
MINISTRY OF JUSTICE,LEGAL AID AGENCY,17/03/2016,Higher Crime,LEGAL AID FUND,MARK T MONAGHAN,929818:143494689,"25,600.00 ",Legal Aid Payment - Higher Crime
MINISTRY OF JUSTICE,LEGAL AID AGENCY,17/03/2016,Higher Crime,LEGAL AID FUND,DEIRDRE J CONNOLLY,930430:143494625,"25,600.00 ",Legal Aid Payment - Higher Crime
MINISTRY OF JUSTICE,LEGAL AID AGENCY,09/03/2016,Higher Crime,LEGAL AID FUND,WOODS SOLICITORS,926007:143401841,"25,539.58 ",Legal Aid Payment - Higher Crime
MINISTRY OF JUSTICE,LEGAL AID AGENCY,02/03/2016,Civil Representation,LEGAL AID FUND,STEPHENSONS SOLICITORS LLP,923044:143323618,"25,539.54 ",Legal Aid Payment - Civil Representation
MINISTRY OF JUSTICE,LEGAL AID AGENCY,17/03/2016,Higher Crime,LEGAL AID FUND,MACAULEY SMITH  LTD,930713:143474564,"25,515.31 ",Legal Aid Payment - Higher Crime
MINISTRY OF JUSTICE,LEGAL AID AGENCY,02/03/2016,Civil Representation,LEGAL AID FUND,KK LAW SOLICITORS & ADVOCATES,920557:143335872,"25,500.25 ",Legal Aid Payment - Civil Representation
MINISTRY OF JUSTICE,LEGAL AID AGENCY,09/03/2016,Higher Crime,LEGAL AID FUND,ABV SOLICITORS-ADVOCATE,925846:143427396,"25,497.00 ",Legal Aid Payment - Higher Crime
MINISTRY OF JUSTICE,LEGAL AID AGENCY,02/03/2016,Legal Help,LEGAL AID FUND,KESAR & CO SOLICITORS,921459:143365723,"25,476.00 ",Legal Aid Payment - Legal Help
MINISTRY OF JUSTICE,LEGAL AID AGENCY,02/03/2016,Higher Crime,LEGAL AID FUND,IRVINE THANVI NATAS SOLICITORS,922489:143345063,"25,461.41 ",Legal Aid Payment - Higher Crime
MINISTRY OF JUSTICE,LEGAL AID AGENCY,02/03/2016,Lower Crime,LEGAL AID FUND,GRAHAME STOWE BATESON,923584:143366708,"25,459.00 ",Legal Aid Payment - Lower Crime
MINISTRY OF JUSTICE,LEGAL AID AGENCY,09/03/2016,Higher Crime,LEGAL AID FUND,LANSBURY WORTHINGTON,926441:143400803,"25,447.37 ",Legal Aid Payment - Higher Crime
MINISTRY OF JUSTICE,LEGAL AID AGENCY,09/03/2016,Higher Crime,LEGAL AID FUND,GWEN HENSHAW,927459:143388170,"25,425.98 ",Legal Aid Payment - Higher Crime
MINISTRY OF JUSTICE,LEGAL AID AGENCY,24/03/2016,Civil Representation,LEGAL AID FUND,IRWIN MITCHELL LLP,935699:143603316,"25,344.07 ",Legal Aid Payment - Civil Representation
MINISTRY OF JUSTICE,LEGAL AID AGENCY,02/03/2016,Lower Crime,LEGAL AID FUND,NEWGATE SOLICITORS,920911:143367414,"25,312.00 ",Legal Aid Payment - Lower Crime
MINISTRY OF JUSTICE,LEGAL AID AGENCY,02/03/2016,Lower Crime,LEGAL AID FUND,G T STEWART SOLICITORS,920035:143367301,"25,302.00 ",Legal Aid Payment - Lower Crime
MINISTRY OF JUSTICE,LEGAL AID AGENCY,02/03/2016,Legal Help,LEGAL AID FUND,NEEDHAM POULIER LTD,922016:143365408,"25,299.00 ",Legal Aid Payment - Legal Help
MINISTRY OF JUSTICE,LEGAL AID AGENCY,09/03/2016,Higher Crime,LEGAL AID FUND,GEORGE A CARTER-STEPHENSON QC,927886:143395772,"25,290.97 ",Legal Aid Payment - Higher Crime
MINISTRY OF JUSTICE,LEGAL AID AGENCY,24/03/2016,Higher Crime,LEGAL AID FUND,IMRAN KHAN & PARTNERS,936719:143571175,"25,265.53 ",Legal Aid Payment - Higher Crime
MINISTRY OF JUSTICE,LEGAL AID AGENCY,09/03/2016,Higher Crime,LEGAL AID FUND,HENRY'S SOLICITORS LTD,925159:143386917,"25,236.60 ",Legal Aid Payment - Higher Crime
MINISTRY OF JUSTICE,LEGAL AID AGENCY,24/03/2016,Higher Crime,LEGAL AID FUND,ROBERT LIZAR,934739:143546848,"25,236.60 ",Legal Aid Payment - Higher Crime
MINISTRY OF JUSTICE,LEGAL AID AGENCY,24/03/2016,Higher Crime,LEGAL AID FUND,BERNARD RICHMOND QC,935308:143571381,"25,232.54 ",Legal Aid Payment - Higher Crime
MINISTRY OF JUSTICE,LEGAL AID AGENCY,24/03/2016,Higher Crime,LEGAL AID FUND,DPP LAW LTD-ADVOCATE,937440:143560358,"25,149.00 ",Legal Aid Payment - Higher Crime
MINISTRY OF JUSTICE,LEGAL AID AGENCY,09/03/2016,Higher Crime,LEGAL AID FUND,WOODS SOLICITORS,926007:143401661,"25,132.45 ",Legal Aid Payment - Higher Crime
MINISTRY OF JUSTICE,LEGAL AID AGENCY,24/03/2016,Higher Crime,LEGAL AID FUND,HENRY'S SOLICITORS LTD,934670:143594682,"-25,130.76 ",Legal Aid Payment - Higher Crime
MINISTRY OF JUSTICE,LEGAL AID AGENCY,09/03/2016,Civil Representation,LEGAL AID FUND,S A CARR & CO,926530:143420752,"-25,106.08 ",Legal Aid Payment - Civil Representation
MINISTRY OF JUSTICE,LEGAL AID AGENCY,02/03/2016,Higher Crime,LEGAL AID FUND,MARTIN T LIDDIARD,920806:143333100,"25,092.89 ",Legal Aid Payment - Higher Crime
MINISTRY OF JUSTICE,LEGAL AID AGENCY,09/03/2016,Higher Crime,LEGAL AID FUND,EARL W PINNOCK,927091:143450281,"25,092.89 ",Legal Aid Payment - Higher Crime
MINISTRY OF JUSTICE,LEGAL AID AGENCY,17/03/2016,Legal Help,LEGAL AID FUND,CORAM CHILDREN'S LEGAL CENTRE,931790:143511425,"25,059.77 ",Legal Aid Payment - Legal Help
MINISTRY OF JUSTICE,LEGAL AID AGENCY,17/03/2016,Higher Crime,LEGAL AID FUND,OLLIERS,932407:143518899,"25,014.66 ",Legal Aid Payment - Higher Crime
MINISTRY OF JUSTICE,LEGAL AID AGENCY,02/03/2016,Lower Crime,LEGAL AID FUND,T S LAW LTD,919876:143367453,"25,000.00 ",Legal Aid Payment - Lower Crime
MINISTRY OF JUSTICE,LEGAL AID AGENCY,02/03/2016,Lower Crime,LEGAL AID FUND,HDH LAW,920467:143367261,"25,000.00 ",Legal Aid Payment - Lower Crime
MINISTRY OF JUSTICE,LEGAL AID AGENCY,02/03/2016,Lower Crime,LEGAL AID FUND,T S LAW LTD,921078:143366890,"25,000.00 ",Legal Aid Payment - Lower Crime
MINISTRY OF JUSTICE,LEGAL AID AGENCY,02/03/2016,Lower Crime,LEGAL AID FUND,MCSORLEY LEWIS LAW LTD,921595:143366121,"25,000.00 ",Legal Aid Payment - Lower Crime
MINISTRY OF JUSTICE,LEGAL AID AGENCY,02/03/2016,Lower Crime,LEGAL AID FUND,HAMER CHILDS,922518:143366211,"25,000.00 ",Legal Aid Payment - Lower Crime
MINISTRY OF JUSTICE,LEGAL AID AGENCY,02/03/2016,Lower Crime,LEGAL AID FUND,MCGRATH & CO SOLICITORS,923376:143366618,"25,000.00 ",Legal Aid Payment - Lower Crime
MINISTRY OF JUSTICE,LEGAL AID AGENCY,02/03/2016,Lower Crime,LEGAL AID FUND,BROCKBANK CURWEN CAIN & HALL LTD,923460:143366397,"25,000.00 ",Legal Aid Payment - Lower Crime
MINISTRY OF JUSTICE,LEGAL AID AGENCY,02/03/2016,Lower Crime,LEGAL AID FUND,ALLEN HOOLE SOLICITORS,924685:143367234,"25,000.00 ",Legal Aid Payment - Lower Crime
